Workbook

Sheet fiú (hidden)
B1: 101 m | C1: 40m | D1: 801 m | E1: 4x100 m | F1: Pont | G1: Távol | H1: Súlyl. | I1: Kisl. | J1: Pont
B2: 6.21 | C2: 6.22 | D2: 00:00:49.900 | E2: 00:00:50 | F2: 300 | G2: =N2/100 -> 1.8 | H2: 3 | I2: 4 | J2: 0 | N2: 180
B3: =C2+0.0051 -> 6.2251 | C3: =C4-(C$52-C$2)/50 -> 6.2396 | D3: =E2+0.000000053 -> 00:00:50.005 | E3: =E4-(E$52-E$2)/50 -> 00:00:50.080 | F3: 299 | G3: 1.8234 | H3: 3.06 | I3: 4.36 | J3: 1 | N3: 182.34
B4: 6.2447 | C4: 6.2592 | D4: 00:00:50.085 | E4: 00:00:50.160 | F4: 298 | G4: 1.8468 | H4: 3.12 | I4: 4.73 | J4: 2 | N4: 184.68
B5: 6.2643 | C5: 6.2788 | D5: 00:00:50.165 | E5: 00:00:50.240 | F5: 297 | G5: 1.8702 | H5: 3.17 | I5: 5.09 | J5: 3 | N5: 187.02
B6: 6.2839 | C6: 6.2984 | D6: 00:00:50.245 | E6: 00:00:50.320 | F6: 296 | G6: 1.8936 | H6: 3.23 | I6: 5.46 | J6: 4 | N6: 189.36
B7: 6.3035 | C7: 6.318 | D7: 00:00:50.325 | E7: 00:00:50.400 | F7: 295 | G7: 1.917 | H7: 3.29 | I7: 5.82 | J7: 5 | N7: 191.7
B8: 6.3231 | C8: 6.3376 | D8: 00:00:50.405 | E8: 00:00:50.480 | F8: 294 | G8: 1.9404 | H8: 3.35 | I8: 6.19 | J8: 6 | N8: 194.04
B9: 6.3427 | C9: 6.3572 | D9: 00:00:50.485 | E9: 00:00:50.560 | F9: 293 | G9: 1.9638 | H9: 3.4 | I9: 6.55 | J9: 7 | N9: 196.38
B10: 6.3623 | C10: 6.3768 | D10: 00:00:50.565 | E10: 00:00:50.640 | F10: 292 | G10: 1.9872 | H10: 3.46 | I10: 6.92 | J10: 8 | N10: 198.72
B11: 6.3819 | C11: 6.3964 | D11: 00:00:50.645 | E11: 00:00:50.720 | F11: 291 | G11: 2.0106 | H11: 3.52 | I11: 7.28 | J11: 9 | N11: 201.06
B12: 6.4015 | C12: 6.416 | D12: 00:00:50.725 | E12: 00:00:50.800 | F12: 290 | G12: 2.034 | H12: 3.58 | I12: 7.65 | J12: 10 | N12: 203.4
B13: 6.4211 | C13: 6.4356 | D13: 00:00:50.805 | E13: 00:00:50.880 | F13: 289 | G13: 2.0574 | H13: 3.63 | I13: 8.01 | J13: 11 | N13: 205.74
B14: 6.4407 | C14: 6.4552 | D14: 00:00:50.885 | E14: 00:00:50.960 | F14: 288 | G14: 2.0808 | H14: 3.69 | I14: 8.38 | J14: 12 | N14: 208.08
B15: 6.4603 | C15: 6.4748 | D15: 00:00:50.965 | E15: 00:00:51.040 | F15: 287 | G15: 2.1042 | H15: 3.75 | I15: 8.74 | J15: 13 | N15: 210.42
B16: 6.4799 | C16: 6.4944 | D16: 00:00:51.045 | E16: 00:00:51.120 | F16: 286 | G16: 2.1276 | H16: 3.81 | I16: 9.11 | J16: 14 | N16: 212.76
B17: 6.4995 | C17: 6.514 | D17: 00:00:51.125 | E17: 00:00:51.200 | F17: 285 | G17: 2.151 | H17: 3.86 | I17: 9.47 | J17: 15 | N17: 215.1
B18: 6.5191 | C18: 6.5336 | D18: 00:00:51.205 | E18: 00:00:51.280 | F18: 284 | G18: 2.1744 | H18: 3.92 | I18: 9.84 | J18: 16 | N18: 217.44
B19: 6.5387 | C19: 6.5532 | D19: 00:00:51.285 | E19: 00:00:51.360 | F19: 283 | G19: 2.1978 | H19: 3.98 | I19: 10.2 | J19: 17 | N19: 219.78
B20: 6.5583 | C20: 6.5728 | D20: 00:00:51.365 | E20: 00:00:51.440 | F20: 282 | G20: 2.2212 | H20: 4.04 | I20: 10.57 | J20: 18 | N20: 222.12
B21: 6.5779 | C21: 6.5924 | D21: =E20+0.000000052 -> 00:00:51.444 | E21: 00:00:51.520 | F21: 281 | G21: 2.2446 | H21: 4.09 | I21: 10.93 | J21: 19 | N21: 224.46
B22: 6.5975 | C22: 6.612 | D22: =E21+0.000000069 -> 00:00:51.526 | E22: 00:00:51.600 | F22: 280 | G22: 2.268 | H22: 4.15 | I22: 11.3 | J22: 20 | N22: 226.8
B23: 6.6171 | C23: 6.6316 | D23: =E22+0.000000053 -> 00:00:51.605 | E23: 00:00:51.680 | F23: 279 | G23: 2.2914 | H23: 4.21 | I23: 11.66 | J23: 21 | N23: 229.14
B24: 6.6367 | C24: 6.6512 | D24: =E23+0.000000053 -> 00:00:51.685 | E24: 00:00:51.760 | F24: 278 | G24: 2.3148 | H24: 4.27 | I24: 12.03 | J24: 22 | N24: 231.48
B25: 6.6563 | C25: 6.6708 | D25: =E24+0.000000053 -> 00:00:51.765 | E25: 00:00:51.840 | F25: 277 | G25: 2.3382 | H25: 4.32 | I25: 12.39 | J25: 23 | N25: 233.82
B26: 6.6759 | C26: 6.6904 | D26: =E25+0.000000069 -> 00:00:51.846 | E26: 00:00:51.920 | F26: 276 | G26: 2.3616 | H26: 4.38 | I26: 12.76 | J26: 24 | N26: 236.16
B27: 6.6955 | C27: 6.71 | D27: =E26+0.000000052 -> 00:00:51.924 | E27: 00:00:52 | F27: 275 | G27: 2.385 | H27: 4.44 | I27: 13.12 | J27: 25 | N27: 238.5
B28: 6.7151 | C28: 6.7296 | D28: =E27+0.000000052 -> 00:00:52.004 | E28: 00:00:52.080 | F28: 274 | G28: 2.4084 | H28: 4.5 | I28: 13.48 | J28: 26 | N28: 240.84
B29: 6.7347 | C29: 6.7492 | D29: =E28+0.000000053 -> 00:00:52.085 | E29: 00:00:52.160 | F29: 273 | G29: 2.4318 | H29: 4.56 | I29: 13.85 | J29: 27 | N29: 243.18
B30: 6.7543 | C30: 6.7688 | D30: =E29+0.000000053 -> 00:00:52.165 | E30: 00:00:52.240 | F30: 272 | G30: 2.4552 | H30: 4.61 | I30: 14.21 | J30: 28 | N30: 245.52
B31: 6.7739 | C31: 6.7884 | D31: =E30+0.000000053 -> 00:00:52.245 | E31: 00:00:52.320 | F31: 271 | G31: 2.4786 | H31: 4.67 | I31: 14.58 | J31: 29 | N31: 247.86
B32: 6.7935 | C32: 6.808 | D32: =E31+0.000000053 -> 00:00:52.325 | E32: 00:00:52.400 | F32: 270 | G32: 2.502 | H32: 4.73 | I32: 14.94 | J32: 30 | N32: 250.2
B33: 6.8131 | C33: 6.8276 | D33: =E32+0.000000052 -> 00:00:52.404 | E33: 00:00:52.480 | F33: 269 | G33: 2.5254 | H33: 4.79 | I33: 15.31 | J33: 31 | N33: 252.54
B34: 6.8327 | C34: 6.8472 | D34: =E33+0.000000052 -> 00:00:52.484 | E34: 00:00:52.560 | F34: 268 | G34: 2.5488 | H34: 4.84 | I34: 15.67 | J34: 32 | N34: 254.88
B35: 6.8523 | C35: =C36-(C$52-C$2)/50 -> 6.8668 | D35: =E34+0.000000053 -> 00:00:52.565 | E35: =E36-(E$52-E$2)/50 -> 00:00:52.640 | F35: 267 | G35: 2.5722 | H35: 4.9 | I35: 16.04 | J35: 33 | N35: 257.22
B36: 6.8719 | C36: 6.8864 | D36: =E35+0.000000053 -> 00:00:52.645 | E36: 00:00:52.720 | F36: 266 | G36: 2.5956 | H36: 4.96 | I36: 16.4 | J36: 34 | N36: 259.56
B37: 6.8915 | C37: 6.906 | D37: =E36+0.000000053 -> 00:00:52.725 | E37: 00:00:52.800 | F37: 265 | G37: 2.619 | H37: 5.02 | I37: 16.77 | J37: 35 | N37: 261.9
B38: 6.9111 | C38: 6.9256 | D38: =E37+0.000000053 -> 00:00:52.805 | E38: 00:00:52.880 | F38: 264 | G38: 2.6424 | H38: 5.07 | I38: 17.13 | J38: 36 | N38: 264.24
B39: 6.9307 | C39: 6.9452 | D39: =E38+0.000000052 -> 00:00:52.884 | E39: 00:00:52.960 | F39: 263 | G39: 2.6658 | H39: 5.13 | I39: 17.5 | J39: 37 | N39: 266.58
B40: 6.9503 | C40: 6.9648 | D40: =E39+0.000000052 -> 00:00:52.964 | E40: 00:00:53.040 | F40: 262 | G40: 2.6892 | H40: 5.19 | I40: 17.86 | J40: 38 | N40: 268.92
B41: 6.9699 | C41: 6.9844 | D41: =E40+0.000000053 -> 00:00:53.045 | E41: 00:00:53.120 | F41: 261 | G41: 2.7126 | H41: 5.25 | I41: 18.23 | J41: 39 | N41: 271.26
B42: 6.9895 | C42: 7.004 | D42: =E41+0.000000053 -> 00:00:53.125 | E42: 00:00:53.200 | F42: 260 | G42: 2.736 | H42: 5.3 | I42: 18.59 | J42: 40 | N42: 273.6
B43: 7.0091 | C43: 7.0236 | D43: =E42+0.000000053 -> 00:00:53.205 | E43: 00:00:53.280 | F43: 259 | G43: 2.7594 | H43: 5.36 | I43: 18.96 | J43: 41 | N43: 275.94
B44: 7.0287 | C44: 7.0432 | D44: =E43+0.000000053 -> 00:00:53.285 | E44: 00:00:53.360 | F44: 258 | G44: 2.7828 | H44: 5.42 | I44: 19.32 | J44: 42 | N44: 278.28
B45: 7.0483 | C45: 7.0628 | D45: =E44+0.000000052 -> 00:00:53.364 | E45: 00:00:53.440 | F45: 257 | G45: 2.8062 | H45: 5.48 | I45: 19.69 | J45: 43 | N45: 280.62
B46: 7.0679 | C46: 7.0824 | D46: =E45+0.000000052 -> 00:00:53.444 | E46: 00:00:53.520 | F46: 256 | G46: 2.8296 | H46: 5.53 | I46: 20.05 | J46: 44 | N46: 282.96
B47: 7.0875 | C47: 7.102 | D47: =E46+0.000000069 -> 00:00:53.526 | E47: 00:00:53.600 | F47: 255 | G47: 2.853 | H47: 5.59 | I47: 20.42 | J47: 45 | N47: 285.3
B48: 7.1071 | C48: 7.1216 | D48: =E47+0.000000053 -> 00:00:53.605 | E48: 00:00:53.680 | F48: 254 | G48: 2.8764 | H48: 5.65 | I48: 20.78 | J48: 46 | N48: 287.64
B49: 7.1267 | C49: 7.1412 | D49: =E48+0.000000053 -> 00:00:53.685 | E49: 00:00:53.760 | F49: 253 | G49: 2.8998 | H49: 5.71 | I49: 21.15 | J49: 47 | N49: 289.98
B50: 7.1463 | C50: 7.1608 | D50: =E49+0.000000053 -> 00:00:53.765 | E50: 00:00:53.840 | F50: 252 | G50: 2.9232 | H50: 5.76 | I50: 21.51 | J50: 48 | N50: 292.32
B51: 7.1659 | C51: 7.1804 | D51: =E50+0.000000069 -> 00:00:53.846 | E51: 00:00:53.920 | F51: 251 | G51: 2.9466 | H51: 5.82 | I51: 21.88 | J51: 49 | N51: 294.66
B52: 7.1855 | C52: 7.2 | D52: =E51+0.000000052 -> 00:00:53.924 | E52: 00:00:54 | F52: 250 | G52: 2.97 | H52: 5.88 | I52: 22.24 | J52: 50 | N52: 297
B53: 7.2051 | C53: 7.22 | D53: =E52+0.000000053 -> 00:00:54.005 | E53: 00:00:54.083 | F53: 249 | G53: 2.9916 | H53: 5.93 | I53: 22.57 | J53: 51 | N53: 299.16
B54: 7.2251 | C54: 7.24 | D54: =E53+0.000000053 -> 00:00:54.088 | E54: 00:00:54.166 | F54: 248 | G54: 3.0132 | H54: 5.99 | I54: 22.91 | J54: 52 | N54: 301.32
B55: 7.2451 | C55: 7.26 | D55: =E54+0.000000053 -> 00:00:54.171 | E55: 00:00:54.250 | F55: 247 | G55: 3.0348 | H55: 6.04 | I55: 23.24 | J55: 53 | N55: 303.48
B56: 7.2651 | C56: 7.28 | D56: =E55+0.000000053 -> 00:00:54.254 | E56: 00:00:54.333 | F56: 246 | G56: 3.0564 | H56: 6.09 | I56: 23.58 | J56: 54 | N56: 305.64
B57: 7.2851 | C57: 7.3 | D57: =E56+0.000000052 -> 00:00:54.337 | E57: 00:00:54.416 | F57: 245 | G57: 3.078 | H57: 6.14 | I57: 23.91 | J57: 55 | N57: 307.8
B58: 7.3051 | C58: 7.32 | D58: =E57+0.000000062 -> 00:00:54.421 | E58: 00:00:54.499 | F58: 244 | G58: 3.0996 | H58: 6.2 | I58: 24.25 | J58: 56 | N58: 309.96
B59: 7.3251 | C59: 7.33 | D59: =E58+0.000000053 -> 00:00:54.504 | E59: 00:00:54.582 | F59: 243 | G59: 3.1212 | H59: 6.25 | I59: 24.58 | J59: 57 | N59: 312.12
B60: 7.3351 | C60: 7.35 | D60: =E59+0.000000053 -> 00:00:54.587 | E60: 00:00:54.666 | F60: 242 | G60: 3.1428 | H60: 6.3 | I60: 24.92 | J60: 58 | N60: 314.28
B61: 7.3551 | C61: 7.37 | D61: =E60+0.000000063 -> 00:00:54.671 | E61: 00:00:54.749 | F61: 241 | G61: 3.1644 | H61: 6.36 | I61: 25.25 | J61: 59 | N61: 316.44
B62: 7.3751 | C62: 7.39 | D62: =E61+0.000000053 -> 00:00:54.753 | E62: 00:00:54.832 | F62: 240 | G62: 3.186 | H62: 6.41 | I62: 25.58 | J62: 60 | N62: 318.6
B63: 7.3951 | C63: 7.41 | D63: =E62+0.000000052 -> 00:00:54.836 | E63: 00:00:54.915 | F63: 239 | G63: 3.2076 | H63: 6.46 | I63: 25.92 | J63: 61 | N63: 320.76
B64: 7.4151 | C64: 7.43 | D64: =E63+0.000000052 -> 00:00:54.920 | E64: 00:00:54.998 | F64: 238 | G64: 3.2292 | H64: 6.51 | I64: 26.25 | J64: 62 | N64: 322.92
B65: 7.4351 | C65: 7.45 | D65: =E64+0.000000053 -> 00:00:55.003 | E65: 00:00:55.082 | F65: 237 | G65: 3.2508 | H65: 6.57 | I65: 26.59 | J65: 63 | N65: 325.08
B66: 7.4551 | C66: 7.47 | D66: =E65+0.000000053 -> 00:00:55.086 | E66: 00:00:55.165 | F66: 236 | G66: =N66/100 -> 3.2724 | H66: 6.62 | I66: 26.92 | J66: 64 | N66: 327.24
B67: =C66+0.0051 -> 7.4751 | C67: 7.49 | D67: =E66+0.000000053 -> 00:00:55.169 | E67: 00:00:55.248 | F67: 235 | G67: 3.294 | H67: 6.67 | I67: 27.26 | J67: 65 | N67: 329.4
B68: 7.4951 | C68: 7.51 | D68: =E67+0.000000053 -> 00:00:55.253 | E68: 00:00:55.331 | F68: 234 | G68: 3.3156 | H68: 6.72 | I68: 27.59 | J68: 66 | N68: 331.56
B69: 7.5151 | C69: 7.53 | D69: =E68+0.000000052 -> 00:00:55.336 | E69: 00:00:55.414 | F69: 233 | G69: 3.3372 | H69: 6.78 | I69: 27.92 | J69: 67 | N69: 333.72
B70: 7.5351 | C70: 7.55 | D70: =E69+0.000000052 -> 00:00:55.419 | E70: 00:00:55.498 | F70: 232 | G70: 3.3588 | H70: 6.83 | I70: 28.26 | J70: 68 | N70: 335.88
B71: 7.5551 | C71: 7.56 | D71: =E70+0.000000053 -> 00:00:55.502 | E71: 00:00:55.581 | F71: 231 | G71: 3.3804 | H71: 6.88 | I71: 28.59 | J71: 69 | N71: 338.04
B72: 7.5651 | C72: 7.58 | D72: =E71+0.000000069 -> 00:00:55.587 | E72: 00:00:55.664 | F72: 230 | G72: 3.402 | H72: 6.94 | I72: 28.93 | J72: 70 | N72: 340.2
B73: 7.5851 | C73: 7.6 | D73: =E72+0.000000053 -> 00:00:55.669 | E73: 00:00:55.747 | F73: 229 | G73: 3.4236 | H73: 6.99 | I73: 29.26 | J73: 71 | N73: 342.36
B74: 7.6051 | C74: 7.62 | D74: =E73+0.000000053 -> 00:00:55.752 | E74: 00:00:55.830 | F74: 228 | G74: 3.4452 | H74: 7.04 | I74: 29.6 | J74: 72 | N74: 344.52
B75: 7.6251 | C75: 7.64 | D75: =E74+0.000000052 -> 00:00:55.835 | E75: 00:00:55.914 | F75: 227 | G75: 3.4668 | H75: 7.09 | I75: 29.93 | J75: 73 | N75: 346.68
B76: 7.6451 | C76: 7.66 | D76: =E75+0.000000049 -> 00:00:55.918 | E76: 00:00:55.997 | F76: 226 | G76: 3.4884 | H76: 7.15 | I76: 30.27 | J76: 74 | N76: 348.84
B77: 7.6651 | C77: 7.68 | D77: =E76+0.000000053 -> 00:00:56.001 | E77: 00:00:56.080 | F77: 225 | G77: 3.51 | H77: 7.2 | I77: 30.6 | J77: 75 | N77: 351
B78: 7.6851 | C78: 7.7 | D78: =E77+0.000000053 -> 00:00:56.085 | E78: 00:00:56.163 | F78: 224 | G78: 3.5316 | H78: 7.25 | I78: 30.93 | J78: 76 | N78: 353.16
B79: 7.7051 | C79: 7.72 | D79: =E78+0.000000053 -> 00:00:56.168 | E79: 00:00:56.246 | F79: 223 | G79: 3.5532 | H79: 7.31 | I79: 31.27 | J79: 77 | N79: 355.32
B80: 7.7251 | C80: 7.74 | D80: =E79+0.000000053 -> 00:00:56.251 | E80: 00:00:56.330 | F80: 222 | G80: 3.5748 | H80: 7.36 | I80: 31.6 | J80: 78 | N80: 357.48
B81: 7.7451 | C81: 7.76 | D81: =E80+0.000000052 -> 00:00:56.334 | E81: 00:00:56.413 | F81: 221 | G81: 3.5964 | H81: 7.41 | I81: 31.94 | J81: 79 | N81: 359.64
B82: 7.7651 | C82: 7.78 | D82: =E81+0.000000052 -> 00:00:56.417 | E82: 00:00:56.496 | F82: 220 | G82: 3.618 | H82: 7.46 | I82: 32.27 | J82: 80 | N82: 361.8
B83: 7.7851 | C83: 7.8 | D83: =E82+0.000000053 -> 00:00:56.501 | E83: 00:00:56.579 | F83: 219 | G83: 3.6396 | H83: 7.52 | I83: 32.61 | J83: 81 | N83: 363.96
B84: 7.8051 | C84: 7.81 | D84: =E83+0.000000053 -> 00:00:56.584 | E84: 00:00:56.662 | F84: 218 | G84: 3.6612 | H84: 7.57 | I84: 32.94 | J84: 82 | N84: 366.12
B85: 7.8151 | C85: 7.83 | D85: =E84+0.000000053 -> 00:00:56.667 | E85: 00:00:56.746 | F85: 217 | G85: 3.6828 | H85: 7.62 | I85: 33.28 | J85: 83 | N85: 368.28
B86: 7.8351 | C86: 7.85 | D86: =E85+0.000000063 -> 00:00:56.751 | E86: 00:00:56.829 | F86: 216 | G86: 3.7044 | H86: 7.68 | I86: 33.61 | J86: 84 | N86: 370.44
B87: 7.8551 | C87: 7.87 | D87: =E86+0.000000052 -> 00:00:56.833 | E87: 00:00:56.912 | F87: 215 | G87: 3.726 | H87: 7.73 | I87: 33.94 | J87: 85 | N87: 372.6
B88: 7.8751 | C88: 7.89 | D88: =E87+0.000000052 -> 00:00:56.916 | E88: 00:00:56.995 | F88: 214 | G88: 3.7476 | H88: 7.78 | I88: 34.28 | J88: 86 | N88: 374.76
B89: 7.8951 | C89: 7.91 | D89: =E88+0.000000063 -> 00:00:57.001 | E89: 00:00:57.078 | F89: 213 | G89: 3.7692 | H89: 7.83 | I89: 34.61 | J89: 87 | N89: 376.92
B90: 7.9151 | C90: 7.93 | D90: =E89+0.000000053 -> 00:00:57.083 | E90: 00:00:57.162 | F90: 212 | G90: 3.7908 | H90: 7.89 | I90: 34.95 | J90: 88 | N90: 379.08
B91: 7.9351 | C91: 7.95 | D91: =E90+0.000000053 -> 00:00:57.166 | E91: 00:00:57.245 | F91: 211 | G91: 3.8124 | H91: 7.94 | I91: 35.28 | J91: 89 | N91: 381.24
B92: 7.9551 | C92: 7.97 | D92: =E91+0.000000053 -> 00:00:57.249 | E92: 00:00:57.328 | F92: 210 | G92: 3.834 | H92: 7.99 | I92: 35.62 | J92: 90 | N92: 383.4
B93: 7.9751 | C93: 7.99 | D93: =E92+0.000000069 -> 00:00:57.334 | E93: 00:00:57.411 | F93: 209 | G93: 3.8556 | H93: 8.04 | I93: 35.95 | J93: 91 | N93: 385.56
B94: 7.9951 | C94: 8.01 | D94: =E93+0.000000052 -> 00:00:57.416 | E94: 00:00:57.494 | F94: 208 | G94: 3.8772 | H94: 8.1 | I94: 36.28 | J94: 92 | N94: 387.72
B95: 8.0151 | C95: 8.03 | D95: =E94+0.000000053 -> 00:00:57.499 | E95: 00:00:57.578 | F95: 207 | G95: 3.8988 | H95: 8.15 | I95: 36.62 | J95: 93 | N95: 389.88
B96: 8.0351 | C96: 8.04 | D96: =E95+0.000000053 -> 00:00:57.582 | E96: 00:00:57.661 | F96: 206 | G96: 3.9204 | H96: 8.2 | I96: 36.95 | J96: 94 | N96: 392.04
B97: 8.0451 | C97: 8.06 | D97: =E96+0.000000069 -> 00:00:57.667 | E97: 00:00:57.744 | F97: 205 | G97: 3.942 | H97: 8.26 | I97: 37.29 | J97: 95 | N97: 394.2
B98: 8.0651 | C98: 8.08 | D98: =E97+0.000000053 -> 00:00:57.749 | E98: 00:00:57.827 | F98: 204 | G98: 3.9636 | H98: 8.31 | I98: 37.62 | J98: 96 | N98: 396.36
B99: 8.0851 | C99: 8.1 | D99: =E98+0.000000052 -> 00:00:57.832 | E99: 00:00:57.910 | F99: 203 | G99: 3.9852 | H99: 8.36 | I99: 37.96 | J99: 97 | N99: 398.52
B100: 8.1051 | C100: 8.12 | D100: =E99+0.000000052 -> 00:00:57.915 | E100: 00:00:57.994 | F100: 202 | G100: 4.0068 | H100: 8.41 | I100: 38.29 | J100: 98 | N100: 400.68
B101: 8.1251 | C101: 8.14 | D101: =E100+0.000000049 -> 00:00:57.998 | E101: 00:00:58.077 | F101: 201 | G101: 4.0284 | H101: 8.47 | I101: 38.63 | J101: 99 | N101: 402.84
B102: 8.1451 | C102: 8.16 | D102: =E101+0.000000053 -> 00:00:58.081 | E102: 00:00:58.160 | F102: 200 | G102: 4.05 | H102: 8.52 | I102: 38.96 | J102: 100 | N102: 405
B103: 8.1651 | C103: 8.18 | D103: =E102+0.000000053 -> 00:00:58.165 | E103: 00:00:58.254 | F103: 199 | G103: 4.0696 | H103: 8.57 | I103: 39.26 | J103: 101 | N103: 406.96
B104: 8.1851 | C104: 8.2 | D104: =E103+0.000000053 -> 00:00:58.258 | E104: 00:00:58.347 | F104: 198 | G104: 4.0892 | H104: 8.62 | I104: 39.57 | J104: 102 | N104: 408.92
B105: 8.2051 | C105: 8.22 | D105: =E104+0.000000052 -> 00:00:58.352 | E105: 00:00:58.441 | F105: 197 | G105: 4.1088 | H105: 8.66 | I105: 39.87 | J105: 103 | N105: 410.88
B106: 8.2251 | C106: 8.25 | D106: =E105+0.000000069 -> 00:00:58.447 | E106: 00:00:58.534 | F106: 196 | G106: 4.1284 | H106: 8.71 | I106: 40.18 | J106: 104 | N106: 412.84
B107: 8.2551 | C107: 8.27 | D107: =E106+0.000000053 -> 00:00:58.539 | E107: 00:00:58.628 | F107: 195 | G107: 4.148 | H107: 8.76 | I107: 40.48 | J107: 105 | N107: 414.8
B108: 8.2751 | C108: 8.29 | D108: =E107+0.000000053 -> 00:00:58.633 | E108: 00:00:58.722 | F108: 194 | G108: 4.1676 | H108: 8.81 | I108: 40.78 | J108: 106 | N108: 416.76
B109: 8.2951 | C109: 8.31 | D109: =E108+0.000000053 -> 00:00:58.726 | E109: 00:00:58.815 | F109: 193 | G109: 4.1872 | H109: 8.86 | I109: 41.09 | J109: 107 | N109: 418.72
B110: 8.3151 | C110: 8.33 | D110: =E109+0.000000063 -> 00:00:58.821 | E110: 00:00:58.909 | F110: 192 | G110: 4.2068 | H110: 8.9 | I110: 41.39 | J110: 108 | N110: 420.68
B111: 8.3351 | C111: 8.35 | D111: =E110+0.000000052 -> 00:00:58.913 | E111: 00:00:59.002 | F111: 191 | G111: 4.2264 | H111: 8.95 | I111: 41.7 | J111: 109 | N111: 422.64
B112: 8.3551 | C112: 8.38 | D112: =E111+0.000000052 -> 00:00:59.007 | E112: 00:00:59.096 | F112: 190 | G112: 4.246 | H112: 9 | I112: 42 | J112: 110 | N112: 424.6
B113: 8.3851 | C113: 8.4 | D113: =E112+0.000000053 -> 00:00:59.101 | E113: 00:00:59.190 | F113: 189 | G113: 4.2656 | H113: 9.05 | I113: 42.3 | J113: 111 | N113: 426.56
B114: 8.4051 | C114: 8.42 | D114: =E113+0.000000053 -> 00:00:59.194 | E114: 00:00:59.283 | F114: 188 | G114: 4.2852 | H114: 9.1 | I114: 42.61 | J114: 112 | N114: 428.52
B115: 8.4251 | C115: 8.44 | D115: =E114+0.000000053 -> 00:00:59.288 | E115: 00:00:59.377 | F115: 187 | G115: 4.3048 | H115: 9.14 | I115: 42.91 | J115: 113 | N115: 430.48
B116: 8.4451 | C116: 8.46 | D116: =E115+0.000000053 -> 00:00:59.381 | E116: 00:00:59.470 | F116: 186 | G116: 4.3244 | H116: 9.19 | I116: 43.22 | J116: 114 | N116: 432.44
B117: 8.4651 | C117: 8.48 | D117: =E116+0.000000052 -> 00:00:59.475 | E117: 00:00:59.564 | F117: 185 | G117: 4.344 | H117: 9.24 | I117: 43.52 | J117: 115 | N117: 434.4
B118: 8.4851 | C118: 8.51 | D118: =E117+0.000000052 -> 00:00:59.568 | E118: 00:00:59.658 | F118: 184 | G118: 4.3636 | H118: 9.29 | I118: 43.82 | J118: 116 | N118: 436.36
B119: 8.5151 | C119: 8.53 | D119: =E118+0.000000053 -> 00:00:59.662 | E119: 00:00:59.751 | F119: 183 | G119: 4.3832 | H119: 9.34 | I119: 44.13 | J119: 117 | N119: 438.32
B120: 8.5351 | C120: 8.55 | D120: =E119+0.000000053 -> 00:00:59.756 | E120: 00:00:59.845 | F120: 182 | G120: 4.4028 | H120: 9.38 | I120: 44.43 | J120: 118 | N120: 440.28
B121: 8.5551 | C121: 8.57 | D121: =E120+0.000000053 -> 00:00:59.849 | E121: 00:01:00 | F121: 181 | G121: 4.4224 | H121: 9.43 | I121: 44.74 | J121: 119 | N121: 442.24
B122: 8.5751 | C122: 8.59 | D122: =E121+0.000000053 -> 00:01:00.005 | E122: 00:01:00.032 | F122: 180 | G122: 4.442 | H122: 9.48 | I122: 45.04 | J122: 120 | N122: 444.2
B123: 8.5951 | C123: 8.61 | D123: =E122+0.000000052 -> 00:01:00.036 | E123: 00:01:00.126 | F123: 179 | G123: 4.4616 | H123: 9.53 | I123: 45.34 | J123: 121 | N123: 446.16
B124: 8.6151 | C124: 8.64 | D124: =E123+0.000000052 -> 00:01:00.130 | E124: 00:01:00.219 | F124: 178 | G124: 4.4812 | H124: 9.58 | I124: 45.65 | J124: 122 | N124: 448.12
B125: 8.6451 | C125: 8.66 | D125: =E124+0.000000053 -> 00:01:00.224 | E125: 00:01:00.313 | F125: 177 | G125: 4.5008 | H125: 9.62 | I125: 45.95 | J125: 123 | N125: 450.08
B126: 8.6651 | C126: 8.68 | D126: =E125+0.000000053 -> 00:01:00.317 | E126: 00:01:00.406 | F126: 176 | G126: 4.5204 | H126: 9.67 | I126: 46.26 | J126: 124 | N126: 452.04
B127: 8.6851 | C127: 8.7 | D127: =E126+0.000000053 -> 00:01:00.411 | E127: 00:01:00.500 | F127: 175 | G127: 4.54 | H127: 9.72 | I127: 46.56 | J127: 125 | N127: 454
B128: 8.7051 | C128: 8.72 | D128: =E127+0.000000053 -> 00:01:00.505 | E128: 00:01:00.594 | F128: 174 | G128: 4.5596 | H128: 9.77 | I128: 46.86 | J128: 126 | N128: 455.96
B129: 8.7251 | C129: 8.74 | D129: =E128+0.000000069 -> 00:01:00.600 | E129: 00:01:00.687 | F129: 173 | G129: 4.5792 | H129: 9.82 | I129: 47.17 | J129: 127 | N129: 457.92
B130: 8.7451 | C130: 8.76 | D130: =E129+0.000000052 -> 00:01:00.692 | E130: 00:01:00.781 | F130: 172 | G130: =N130/100 -> 4.5988 | H130: 9.86 | I130: 47.47 | J130: 128 | N130: 459.88
B131: =C130+0.0051 -> 8.7651 | C131: 8.79 | D131: =E130+0.000000053 -> 00:01:00.785 | E131: 00:01:00.874 | F131: 171 | G131: 4.6184 | H131: 9.91 | I131: 47.78 | J131: 129 | N131: 461.84
B132: 8.7951 | C132: 8.81 | D132: =E131+0.000000053 -> 00:01:00.879 | E132: 00:01:00.968 | F132: 170 | G132: 4.638 | H132: 9.96 | I132: 48.08 | J132: 130 | N132: 463.8
B133: 8.8151 | C133: 8.83 | D133: =E132+0.000000053 -> 00:01:00.973 | E133: 00:01:01.062 | F133: 169 | G133: 4.6576 | H133: 10.01 | I133: 48.38 | J133: 131 | N133: 465.76
B134: 8.8351 | C134: 8.85 | D134: =E133+0.000000053 -> 00:01:01.066 | E134: 00:01:01.155 | F134: 168 | G134: 4.6772 | H134: 10.06 | I134: 48.69 | J134: 132 | N134: 467.72
B135: 8.8551 | C135: 8.87 | D135: =E134+0.000000052 -> 00:01:01.160 | E135: 00:01:01.249 | F135: 167 | G135: 4.6968 | H135: 10.1 | I135: 48.99 | J135: 133 | N135: 469.68
B136: 8.8751 | C136: 8.89 | D136: =E135+0.000000052 -> 00:01:01.253 | E136: 00:01:01.342 | F136: 166 | G136: 4.7164 | H136: 10.15 | I136: 49.3 | J136: 134 | N136: 471.64
B137: 8.8951 | C137: 8.92 | D137: =E136+0.000000053 -> 00:01:01.347 | E137: 00:01:01.436 | F137: 165 | G137: 4.736 | H137: 10.2 | I137: 49.6 | J137: 135 | N137: 473.6
B138: 8.9251 | C138: 8.94 | D138: =E137+0.000000053 -> 00:01:01.441 | E138: 00:01:01.530 | F138: 164 | G138: 4.7556 | H138: 10.25 | I138: 49.9 | J138: 136 | N138: 475.56
B139: 8.9451 | C139: 8.96 | D139: =E138+0.000000053 -> 00:01:01.534 | E139: 00:01:01.623 | F139: 163 | G139: 4.7752 | H139: 10.3 | I139: 50.21 | J139: 137 | N139: 477.52
B140: 8.9651 | C140: 8.98 | D140: =E139+0.000000053 -> 00:01:01.628 | E140: 00:01:01.717 | F140: 162 | G140: 4.7948 | H140: 10.34 | I140: 50.51 | J140: 138 | N140: 479.48
B141: 8.9851 | C141: 9 | D141: =E140+0.000000052 -> 00:01:01.721 | E141: 00:01:01.810 | F141: 161 | G141: 4.8144 | H141: 10.39 | I141: 50.82 | J141: 139 | N141: 481.44
B142: 9.0051 | C142: 9.02 | D142: =E141+0.000000052 -> 00:01:01.815 | E142: 00:01:01.904 | F142: 160 | G142: 4.834 | H142: 10.44 | I142: 51.12 | J142: 140 | N142: 483.4
B143: 9.0251 | C143: 9.05 | D143: =E142+0.000000053 -> 00:01:01.909 | E143: 00:01:01.998 | F143: 159 | G143: 4.8536 | H143: 10.49 | I143: 51.42 | J143: 141 | N143: 485.36
B144: 9.0551 | C144: 9.07 | D144: =E143+0.000000053 -> 00:01:02.002 | E144: 00:01:02.091 | F144: 158 | G144: 4.8732 | H144: 10.54 | I144: 51.73 | J144: 142 | N144: 487.32
B145: 9.0751 | C145: 9.09 | D145: =E144+0.000000053 -> 00:01:02.096 | E145: 00:01:02.185 | F145: 157 | G145: 4.8928 | H145: 10.58 | I145: 52.03 | J145: 143 | N145: 489.28
B146: 9.0951 | C146: 9.11 | D146: =E145+0.000000053 -> 00:01:02.189 | E146: 00:01:02.278 | F146: 156 | G146: 4.9124 | H146: 10.63 | I146: 52.34 | J146: 144 | N146: 491.24
B147: 9.1151 | C147: 9.13 | D147: =E146+0.000000052 -> 00:01:02.283 | E147: 00:01:02.372 | F147: 155 | G147: 4.932 | H147: 10.68 | I147: 52.64 | J147: 145 | N147: 493.2
B148: 9.1351 | C148: 9.15 | D148: =E147+0.000000052 -> 00:01:02.376 | E148: 00:01:02.466 | F148: 154 | G148: 4.9516 | H148: 10.73 | I148: 52.94 | J148: 146 | N148: 495.16
B149: 9.1551 | C149: 9.18 | D149: =E148+0.000000063 -> 00:01:02.471 | E149: 00:01:02.559 | F149: 153 | G149: 4.9712 | H149: 10.78 | I149: 53.25 | J149: 147 | N149: 497.12
B150: 9.1851 | C150: 9.2 | D150: =E149+0.000000053 -> 00:01:02.564 | E150: 00:01:02.653 | F150: 152 | G150: 4.9908 | H150: 10.82 | I150: 53.55 | J150: 148 | N150: 499.08
B151: 9.2051 | C151: 9.22 | D151: =E150+0.000000053 -> 00:01:02.657 | E151: 00:01:02.746 | F151: 151 | G151: 5.0104 | H151: 10.87 | I151: 53.86 | J151: 149 | N151: 501.04
B152: 9.2251 | C152: 9.24 | D152: =E151+0.000000053 -> 00:01:02.751 | E152: 00:01:02.840 | F152: 150 | G152: 5.03 | H152: 10.92 | I152: 54.16 | J152: 150 | N152: 503
B153: 9.2451 | C153: 9.26 | D153: =E152+0.000000052 -> 00:01:02.844 | E153: 00:01:02.944 | F153: 149 | G153: 5.0476 | H153: 10.96 | I153: 54.43 | J153: 151 | N153: 504.76
B154: 9.2651 | C154: 9.29 | D154: =E153+0.000000052 -> 00:01:02.948 | E154: 00:01:03.048 | F154: 148 | G154: 5.0652 | H154: 11.01 | I154: 54.71 | J154: 152 | N154: 506.52
B155: 9.2951 | C155: 9.31 | D155: =E154+0.000000053 -> 00:01:03.053 | E155: 00:01:03.152 | F155: 147 | G155: 5.0828 | H155: 11.05 | I155: 54.98 | J155: 153 | N155: 508.28
B156: 9.3151 | C156: 9.34 | D156: =E155+0.000000053 -> 00:01:03.157 | E156: 00:01:03.256 | F156: 146 | G156: 5.1004 | H156: 11.09 | I156: 55.25 | J156: 154 | N156: 510.04
B157: 9.3451 | C157: 9.36 | D157: =E156+0.000000053 -> 00:01:03.261 | E157: 00:01:03.360 | F157: 145 | G157: 5.118 | H157: 11.14 | I157: 55.53 | J157: 155 | N157: 511.8
B158: 9.3651 | C158: 9.38 | D158: =E157+0.000000053 -> 00:01:03.365 | E158: 00:01:03.464 | F158: 144 | G158: 5.1356 | H158: 11.18 | I158: 55.8 | J158: 156 | N158: 513.56
B159: 9.3851 | C159: 9.41 | D159: =E158+0.000000052 -> 00:01:03.468 | E159: 00:01:03.568 | F159: 143 | G159: 5.1532 | H159: 11.22 | I159: 56.08 | J159: 157 | N159: 515.32
B160: 9.4151 | C160: 9.43 | D160: =E159+0.000000069 -> 00:01:03.574 | E160: 00:01:03.672 | F160: 142 | G160: 5.1708 | H160: 11.27 | I160: 56.35 | J160: 158 | N160: 517.08
B161: 9.4351 | C161: 9.46 | D161: =E160+0.000000053 -> 00:01:03.677 | E161: 00:01:03.776 | F161: 141 | G161: 5.1884 | H161: 11.31 | I161: 56.62 | J161: 159 | N161: 518.84
B162: 9.4651 | C162: 9.48 | D162: =E161+0.000000053 -> 00:01:03.781 | E162: 00:01:03.880 | F162: 140 | G162: 5.206 | H162: 11.35 | I162: 56.9 | J162: 160 | N162: 520.6
B163: 9.4851 | C163: 9.5 | D163: =E162+0.000000053 -> 00:01:03.885 | E163: 00:01:03.984 | F163: 139 | G163: 5.2236 | H163: 11.4 | I163: 57.17 | J163: 161 | N163: 522.36
B164: 9.5051 | C164: 9.53 | D164: =E163+0.000000053 -> 00:01:03.989 | E164: 00:01:04.088 | F164: 138 | G164: 5.2412 | H164: 11.44 | I164: 57.44 | J164: 162 | N164: 524.12
B165: 9.5351 | C165: 9.55 | D165: =E164+0.000000069 -> 00:01:04.094 | E165: 00:01:04.192 | F165: 137 | G165: 5.2588 | H165: 11.48 | I165: 57.72 | J165: 163 | N165: 525.88
B166: 9.5551 | C166: 9.58 | D166: =E165+0.000000052 -> 00:01:04.196 | E166: 00:01:04.296 | F166: 136 | G166: 5.2764 | H166: 11.52 | I166: 57.99 | J166: 164 | N166: 527.64
B167: 9.5851 | C167: 9.6 | D167: =E166+0.000000053 -> 00:01:04.301 | E167: 00:01:04.400 | F167: 135 | G167: 5.294 | H167: 11.57 | I167: 58.26 | J167: 165 | N167: 529.4
B168: 9.6051 | C168: 9.62 | D168: =E167+0.000000053 -> 00:01:04.405 | E168: 00:01:04.504 | F168: 134 | G168: 5.3116 | H168: 11.61 | I168: 58.54 | J168: 166 | N168: 531.16
B169: 9.6251 | C169: 9.65 | D169: =E168+0.000000053 -> 00:01:04.509 | E169: 00:01:04.608 | F169: 133 | G169: 5.3292 | H169: 11.65 | I169: 58.81 | J169: 167 | N169: 532.92
B170: 9.6551 | C170: 9.67 | D170: =E169+0.000000053 -> 00:01:04.613 | E170: 00:01:04.712 | F170: 132 | G170: 5.3468 | H170: 11.7 | I170: 59.08 | J170: 168 | N170: 534.68
B171: 9.6751 | C171: 9.7 | D171: =E170+0.000000052 -> 00:01:04.716 | E171: 00:01:04.816 | F171: 131 | G171: 5.3644 | H171: 11.74 | I171: 59.36 | J171: 169 | N171: 536.44
B172: 9.7051 | C172: 9.72 | D172: =E171+0.000000062 -> 00:01:04.821 | E172: 00:01:04.920 | F172: 130 | G172: 5.382 | H172: 11.78 | I172: 59.63 | J172: 170 | N172: 538.2
B173: 9.7251 | C173: 9.74 | D173: =E172+0.000000053 -> 00:01:04.925 | E173: 00:01:05.024 | F173: 129 | G173: 5.3996 | H173: 11.83 | I173: 59.91 | J173: 171 | N173: 539.96
B174: 9.7451 | C174: 9.77 | D174: =E173+0.000000053 -> 00:01:05.029 | E174: 00:01:05.128 | F174: 128 | G174: 5.4172 | H174: 11.87 | I174: 60.18 | J174: 172 | N174: 541.72
B175: 9.7751 | C175: 9.79 | D175: =E174+0.000000053 -> 00:01:05.133 | E175: 00:01:05.232 | F175: 127 | G175: 5.4348 | H175: 11.91 | I175: 60.45 | J175: 173 | N175: 543.48
B176: 9.7951 | C176: 9.82 | D176: =E175+0.000000053 -> 00:01:05.237 | E176: 00:01:05.336 | F176: 126 | G176: 5.4524 | H176: 11.96 | I176: 60.73 | J176: 174 | N176: 545.24
B177: 9.8251 | C177: 9.84 | D177: =E176+0.000000062 -> 00:01:05.341 | E177: 00:01:05.440 | F177: 125 | G177: 5.47 | H177: 12 | I177: 61 | J177: 175 | N177: 547
B178: 9.8451 | C178: 9.86 | D178: =E177+0.000000052 -> 00:01:05.444 | E178: 00:01:05.544 | F178: 124 | G178: 5.4876 | H178: 12.04 | I178: 61.27 | J178: 176 | N178: 548.76
B179: 9.8651 | C179: 9.89 | D179: =E178+0.000000053 -> 00:01:05.549 | E179: 00:01:05.648 | F179: 123 | G179: 5.5052 | H179: 12.09 | I179: 61.55 | J179: 177 | N179: 550.52
B180: 9.8951 | C180: 9.91 | D180: =E179+0.000000053 -> 00:01:05.653 | E180: 00:01:05.752 | F180: 122 | G180: 5.5228 | H180: 12.13 | I180: 61.82 | J180: 178 | N180: 552.28
B181: 9.9151 | C181: 9.94 | D181: =E180+0.000000053 -> 00:01:05.757 | E181: 00:01:05.856 | F181: 121 | G181: 5.5404 | H181: 12.17 | I181: 62.09 | J181: 179 | N181: 554.04
B182: 9.9451 | C182: 9.96 | D182: =E181+0.000000053 -> 00:01:05.861 | E182: 00:01:05.960 | F182: 120 | G182: 5.558 | H182: 12.22 | I182: 62.37 | J182: 180 | N182: 555.8
B183: 9.9651 | C183: 9.98 | D183: =E182+0.000000052 -> 00:01:05.964 | E183: 00:01:06.064 | F183: 119 | G183: 5.5756 | H183: 12.26 | I183: 62.64 | J183: 181 | N183: 557.56
B184: 9.9851 | C184: 10.01 | D184: =E183+0.000000052 -> 00:01:06.068 | E184: 00:01:06.168 | F184: 118 | G184: 5.5932 | H184: 12.3 | I184: 62.92 | J184: 182 | N184: 559.32
B185: 10.0151 | C185: 10.03 | D185: =E184+0.000000053 -> 00:01:06.173 | E185: 00:01:06.272 | F185: 117 | G185: 5.6108 | H185: 12.35 | I185: 63.19 | J185: 183 | N185: 561.08
B186: 10.0351 | C186: 10.06 | D186: =E185+0.000000053 -> 00:01:06.277 | E186: 00:01:06.376 | F186: 116 | G186: 5.6284 | H186: 12.39 | I186: 63.46 | J186: 184 | N186: 562.84
B187: 10.0651 | C187: 10.08 | D187: =E186+0.000000053 -> 00:01:06.381 | E187: 00:01:06.480 | F187: 115 | G187: 5.646 | H187: 12.43 | I187: 63.74 | J187: 185 | N187: 564.6
B188: 10.0851 | C188: 10.1 | D188: =E187+0.000000053 -> 00:01:06.485 | E188: 00:01:06.584 | F188: 114 | G188: 5.6636 | H188: 12.48 | I188: 64.01 | J188: 186 | N188: 566.36
B189: 10.1051 | C189: 10.13 | D189: =E188+0.000000052 -> 00:01:06.588 | E189: 00:01:06.688 | F189: 113 | G189: 5.6812 | H189: 12.52 | I189: 64.28 | J189: 187 | N189: 568.12
B190: 10.1351 | C190: 10.15 | D190: =E189+0.000000052 -> 00:01:06.692 | E190: 00:01:06.792 | F190: 112 | G190: 5.6988 | H190: 12.56 | I190: 64.56 | J190: 188 | N190: 569.88
B191: 10.1551 | C191: 10.18 | D191: =E190+0.000000053 -> 00:01:06.797 | E191: 00:01:06.896 | F191: 111 | G191: 5.7164 | H191: 12.6 | I191: 64.83 | J191: 189 | N191: 571.64
B192: 10.1851 | C192: 10.2 | D192: =E191+0.000000053 -> 00:01:06.901 | E192: 00:01:07 | F192: 110 | G192: 5.734 | H192: 12.65 | I192: 65.1 | J192: 190 | N192: 573.4
B193: 10.2051 | C193: 10.22 | D193: =E192+0.000000053 -> 00:01:07.005 | E193: 00:01:07.104 | F193: 109 | G193: 5.7516 | H193: 12.69 | I193: 65.38 | J193: 191 | N193: 575.16
B194: 10.2251 | C194: 10.25 | D194: =E193+0.000000053 -> 00:01:07.109 | E194: 00:01:07.208 | F194: 108 | G194: =N194/100 -> 5.7692 | H194: 12.73 | I194: 65.65 | J194: 192 | N194: 576.92
B195: =C194+0.0051 -> 10.2551 | C195: 10.27 | D195: =E194+0.000000069 -> 00:01:07.214 | E195: 00:01:07.312 | F195: 107 | G195: 5.7868 | H195: 12.78 | I195: 65.92 | J195: 193 | N195: 578.68
B196: 10.2751 | C196: 10.3 | D196: =E195+0.000000052 -> 00:01:07.316 | E196: 00:01:07.416 | F196: 106 | G196: 5.8044 | H196: 12.82 | I196: 66.2 | J196: 194 | N196: 580.44
B197: 10.3051 | C197: 10.32 | D197: =E196+0.000000053 -> 00:01:07.421 | E197: 00:01:07.520 | F197: 105 | G197: 5.822 | H197: 12.86 | I197: 66.47 | J197: 195 | N197: 582.2
B198: 10.3251 | C198: 10.34 | D198: =E197+0.000000053 -> 00:01:07.525 | E198: 00:01:07.624 | F198: 104 | G198: 5.8396 | H198: 12.91 | I198: 66.75 | J198: 196 | N198: 583.96
B199: 10.3451 | C199: 10.37 | D199: =E198+0.000000053 -> 00:01:07.629 | E199: 00:01:07.728 | F199: 103 | G199: 5.8572 | H199: 12.95 | I199: 67.02 | J199: 197 | N199: 585.72
B200: 10.3751 | C200: 10.39 | D200: =E199+0.000000053 -> 00:01:07.733 | E200: 00:01:07.832 | F200: 102 | G200: 5.8748 | H200: 12.99 | I200: 67.29 | J200: 198 | N200: 587.48
... 102 more rows

Sheet Be
A1: II. korcsoport FIÚ Összetett verseny
A3: Név | B3: Sz.év | C3: 60 m | E3: Távolugrás | G3: Klabdahajítás | I3: Összpont | J3: helyezés | K3: Iskola
A4: Vörösmarty Milán | B4: 2006 | C4: 9.35 | D4: =IF(C4<6.19,0,VLOOKUP(C4,rfut,5,TRUE)) -> 145 | E4: 3.95 | F4: =IF(E4<1.79,0,VLOOKUP(E4,távol,4,TRUE)) -> 95 | G4: 37.09 | H4: =IF(G4<4,0,VLOOKUP(G4,kisl,2,TRUE)) -> 94 | I4: =SUM(D4,F4,H4) -> 334 | J4: =RANK(I4,Egyéni!$J$3:$J$136,0) -> 5 | K4: Móri Radnóti Miklós Általános Iskola Mór
A5: Kecskés Zsombor | B5: 2006 | C5: 9.36 | D5: 145 | E5: 3.66 | F5: 81 | G5: 34.52 | H5: 86 | I5: =SUM(D5,F5,H5) -> 312 | J5: =RANK(I5,Egyéni!$J$3:$J$136,0) -> 14 | K5: Váli Vajda János Általános Iskola Vál
A6: Simotics Máté | B6: 2006 | C6: 9.03 | D6: 159 | E6: 4.5 | F6: 122 | G6: 42.77 | H6: 112 | I6: 393 | J6: =RANK(I6,Egyéni!$J$3:$J$136,0) -> 1 | K6: Batthyány Fülöp Gimn. ás Ált. Isk. Enying
D7: 0 | F7: 0 | H7: 0 | I7: 0 | J7: =RANK(I7,Egyéni!$J$3:$J$136,0) -> 45
D8: 0 | F8: 0 | H8: 0 | I8: 0 | J8: =RANK(I8,Egyéni!$J$3:$J$136,0) -> 45
D9: 0 | F9: 0 | H9: 0 | I9: 0 | J9: =RANK(I9,Egyéni!$J$3:$J$136,0) -> 45
D10: 0 | F10: 0 | H10: 0 | I10: 0 | J10: =RANK(I10,Egyéni!$J$3:$J$136,0) -> 45
D11: 0 | F11: 0 | H11: 0 | I11: 0 | J11: =RANK(I11,Egyéni!$J$3:$J$136,0) -> 45
D12: 0 | F12: 0 | H12: 0 | I12: 0 | J12: =RANK(I12,Egyéni!$J$3:$J$136,0) -> 45
D13: 0 | F13: 0 | H13: 0 | I13: 0 | J13: =RANK(I13,Egyéni!$J$3:$J$136,0) -> 45
D14: 0 | F14: 0 | H14: 0 | I14: 0 | J14: =RANK(I14,Egyéni!$J$3:$J$136,0) -> 45
D15: 0 | F15: 0 | H15: 0 | I15: 0 | J15: =RANK(I15,Egyéni!$J$3:$J$136,0) -> 45
D16: 0 | F16: 0 | H16: 0 | I16: 0 | J16: =RANK(I16,Egyéni!$J$3:$J$136,0) -> 45
D17: 0 | F17: 0 | H17: 0 | I17: 0 | J17: =RANK(I17,Egyéni!$J$3:$J$136,0) -> 45
D18: 0 | F18: 0 | H18: 0 | I18: 0 | J18: =RANK(I18,Egyéni!$J$3:$J$136,0) -> 45
D19: 0 | F19: 0 | H19: 0 | I19: 0 | J19: =RANK(I19,Egyéni!$J$3:$J$136,0) -> 45
D20: 0 | F20: 0 | H20: 0 | I20: 0 | J20: =RANK(I20,Egyéni!$J$3:$J$136,0) -> 45
D21: 0 | F21: 0 | H21: 0 | I21: 0 | J21: =RANK(I21,Egyéni!$J$3:$J$136,0) -> 45
D22: 0 | F22: 0 | H22: 0 | I22: 0 | J22: =RANK(I22,Egyéni!$J$3:$J$136,0) -> 45
D23: 0 | F23: 0 | H23: 0 | I23: 0 | J23: =RANK(I23,Egyéni!$J$3:$J$136,0) -> 45
D24: 0 | F24: 0 | H24: 0 | I24: 0 | J24: =RANK(I24,Egyéni!$J$3:$J$136,0) -> 45
D25: 0 | F25: 0 | H25: 0 | I25: 0 | J25: =RANK(I25,Egyéni!$J$3:$J$136,0) -> 45
A27: Alcsútdobozi József Nádor Általános Iskola Alcsútdoboz | K27: =RANK(K29,Csapat!$C$3:P30,0) -> 7
A28: Név | B28: Sz.év | C28: 60 m | E28: Távolugrás | G28: Klabdahajítás | I28: Összpont | J28: Helyezés
A29: Ángyás Ferenc János | B29: 2006 | C29: 10.4 | D29: =IF(C29<6.19,0,VLOOKUP(C29,rfut,5,TRUE)) -> 101 | E29: 3.22 | F29: =IF(E29<1.79,0,VLOOKUP(E29,távol,4,TRUE)) -> 61 | G29: 31.56 | H29: =IF(G29<4,0,VLOOKUP(G29,kisl,2,TRUE)) -> 77 | I29: =SUM(D29,F29,H29) -> 239 | J29: =RANK(I29,Egyéni!$J$3:$J$136,0) -> 35 | K29: =SUM(I29:I34)-MIN(I29:I34)+K34 -> 1346
A30: Antal Márton | B30: 2006 | C30: 9.38 | D30: 144 | E30: 3.52 | F30: 75 | G30: 29.73 | H30: 72 | I30: 291 | J30: =RANK(I30,Egyéni!$J$3:$J$136,0) -> 20
A31: Bíró Ádám Levente | B31: 2006 | C31: 10.26 | D31: 107 | E31: 3.11 | F31: 56 | G31: 24.56 | H31: 56 | I31: 219 | J31: =RANK(I31,Egyéni!$J$3:$J$136,0) -> 40
A32: Budai Kristóf Tamás | B32: 2006 | C32: 9.89 | D32: 123 | E32: 3.6 | F32: 79 | G32: 24.78 | H32: 57 | I32: 259 | J32: =RANK(I32,Egyéni!$J$3:$J$136,0) -> 30
A33: Keindl Gergő | B33: 2006 | C33: 10.33 | D33: 104 | E33: 2.8 | F33: 42 | G33: 26.46 | H33: 62 | I33: 208 | J33: =RANK(I33,Egyéni!$J$3:$J$136,0) -> 43 | K33: 4×100 | L33: 00:01:06.410
A34: Marton István | B34: 2006 | C34: 10.5 | D34: 97 | E34: 3.34 | F34: 67 | G34: 25.48 | H34: 59 | I34: 223 | J34: =RANK(I34,Egyéni!$J$3:$J$136,0) -> 38 | K34: =IF(L33<fiú!$D$2,0,VLOOKUP(L33,hfut,3,TRUE)) -> 115
A37: Szent Erzsébet Római Katolikus Általános Iskola Mór | K37: =RANK(K39,Csapat!$C$3:P40,0) -> 5
A38: Név | B38: Sz.év | C38: 60 m | E38: Távolugrás | G38: Klabdahajítás | I38: Összpont | J38: Helyezés
A39: Gellért Zsombor | B39: 2007 | C39: 9.88 | D39: =IF(C39<6.19,0,VLOOKUP(C39,rfut,5,TRUE)) -> 123 | E39: 3.19 | F39: =IF(E39<1.79,0,VLOOKUP(E39,távol,4,TRUE)) -> 60 | G39: 27.2 | H39: =IF(G39<4,0,VLOOKUP(G39,kisl,2,TRUE)) -> 64 | I39: =SUM(D39,F39,H39) -> 247 | J39: =RANK(I39,Egyéni!$J$3:$J$136,0) -> 33 | K39: =SUM(I39:I44)-MIN(I39:I44)+K44 -> 1517
A40: Jánni Ákos | B40: 2006 | C40: 9.86 | D40: 124 | E40: 3.67 | F40: 82 | G40: 37.17 | H40: 94 | I40: 300 | J40: =RANK(I40,Egyéni!$J$3:$J$136,0) -> 17
A41: Lenchés Tamás | B41: 2006 | C41: 9.71 | D41: 130 | E41: 3.26 | F41: 63 | G41: 32.03 | H41: 79 | I41: 272 | J41: =RANK(I41,Egyéni!$J$3:$J$136,0) -> 25
A42: Szemeti Márton | B42: 2006 | C42: 9.96 | D42: 120 | E42: 3.21 | F42: 61 | G42: 34.31 | H42: 86 | I42: 267 | J42: =RANK(I42,Egyéni!$J$3:$J$136,0) -> 26
A43: Zsédely Levente | B43: 2007 | C43: 9.42 | D43: 142 | E43: 3.88 | F43: 92 | G43: 28.87 | H43: 69 | I43: 303 | J43: =RANK(I43,Egyéni!$J$3:$J$136,0) -> 16 | K43: 4×100 | L43: 00:01:05.050
A44: Krausz Dávid | B44: 2006 | C44: 10.58 | D44: 94 | E44: 2.77 | F44: 41 | G44: 31.07 | H44: 76 | I44: 211 | J44: =RANK(I44,Egyéni!$J$3:$J$136,0) -> 41 | K44: =IF(L43<fiú!$D$2,0,VLOOKUP(L43,hfut,3,TRUE)) -> 128
A47: Kossuth Lajos Általános Iskola Nagyvenyim | K47: =RANK(K49,Csapat!$C$3:P50,0) -> 3
A48: Név | B48: Sz.év | C48: 60 m | E48: Távolugrás | G48: Klabdahajítás | I48: Összpont | J48: Helyezés
A49: Balogh Mátyás | B49: 2007 | C49: 10.97 | D49: =IF(C49<6.19,0,VLOOKUP(C49,rfut,5,TRUE)) -> 80 | E49: 3.15 | F49: =IF(E49<1.79,0,VLOOKUP(E49,távol,4,TRUE)) -> 58 | G49: 29.99 | H49: =IF(G49<4,0,VLOOKUP(G49,kisl,2,TRUE)) -> 73 | I49: =SUM(D49,F49,H49) -> 211 | J49: =RANK(I49,Egyéni!$J$3:$J$136,0) -> 41 | K49: =SUM(I49:I54)-MIN(I49:I54)+K54 -> 1680
A50: Hekele Dániel | B50: 2006 | C50: 9.02 | D50: 160 | E50: 4.5 | F50: 122 | G50: 31.23 | H50: 76 | I50: 358 | J50: =RANK(I50,Egyéni!$J$3:$J$136,0) -> 3
A51: Kolompár Lajos | B51: 2006 | C51: 9.47 | D51: 140 | E51: 3.92 | F51: 93 | G51: 32.44 | H51: 80 | I51: 313 | J51: =RANK(I51,Egyéni!$J$3:$J$136,0) -> 13
A52: Kolompár Milán Rómeó | B52: 2006 | C52: 9.83 | D52: 125 | E52: 3.43 | F52: 71 | G52: 39.26 | H52: 101 | I52: 297 | J52: =RANK(I52,Egyéni!$J$3:$J$136,0) -> 18
A53: Mess Ferenc Gergő | B53: 2007 | C53: 9.72 | D53: 130 | E53: 3.45 | F53: 72 | G53: 26.16 | H53: 61 | I53: 263 | J53: =RANK(I53,Egyéni!$J$3:$J$136,0) -> 27 | K53: 4×100 | L53: 00:01:04.610
A54: Wéber Róbert | B54: 2007 | C54: 8.84 | D54: 168 | E54: 3.89 | F54: 92 | G54: 24.4 | H54: 56 | I54: 316 | J54: =RANK(I54,Egyéni!$J$3:$J$136,0) -> 11 | K54: =IF(L53<fiú!$D$2,0,VLOOKUP(L53,hfut,3,TRUE)) -> 133
A57: Hétvezér Általános Iskola Székesfehérvár | K57: =RANK(K59,Csapat!$C$3:P60,0) -> 2
A58: Név | B58: Sz.év | C58: 60 m | E58: Távolugrás | G58: Klabdahajítás | I58: Összpont | J58: Helyezés
A59: Keserü Balázs | B59: 2006 | C59: 9.89 | D59: =IF(C59<6.19,0,VLOOKUP(C59,rfut,5,TRUE)) -> 123 | E59: 3.63 | F59: =IF(E59<1.79,0,VLOOKUP(E59,távol,4,TRUE)) -> 80 | G59: 32.72 | H59: =IF(G59<4,0,VLOOKUP(G59,kisl,2,TRUE)) -> 81 | I59: =SUM(D59,F59,H59) -> 284 | J59: =RANK(I59,Egyéni!$J$3:$J$136,0) -> 21 | K59: =SUM(I59:I64)-MIN(I59:I64)+K64 -> 1697
A60: Kovács Kristóf | B60: 2006 | C60: 9.96 | D60: 120 | E60: 3.63 | F60: 80 | G60: 33.23 | H60: 82 | I60: 282 | J60: =RANK(I60,Egyéni!$J$3:$J$136,0) -> 23
A61: Kovács Zsombor | B61: 2006 | C61: 9.66 | D61: 132 | E61: 3.72 | F61: 84 | G61: 27.59 | H61: 66 | I61: 282 | J61: =RANK(I61,Egyéni!$J$3:$J$136,0) -> 23
A62: Králik András | B62: 2006 | C62: 9.24 | D62: 150 | E62: 3.99 | F62: 97 | G62: 33.43 | H62: 83 | I62: 330 | J62: =RANK(I62,Egyéni!$J$3:$J$136,0) -> 6
A63: Sógorka Dávid | B63: 2006 | C63: 9.44 | D63: 141 | E63: 4.03 | F63: 99 | G63: 33.44 | H63: 83 | I63: 323 | J63: =RANK(I63,Egyéni!$J$3:$J$136,0) -> 9 | K63: 4×100 | L63: 00:01:02.250
A64: Zákány Zénó | B64: 2006 | C64: 9.34 | D64: 146 | E64: 3.96 | F64: 95 | G64: 32.75 | H64: 81 | I64: 322 | J64: =RANK(I64,Egyéni!$J$3:$J$136,0) -> 10 | K64: =IF(L63<fiú!$D$2,0,VLOOKUP(L63,hfut,3,TRUE)) -> 156
A67: Tóvárosi Általános Iskola Székesfehérvár | K67: =RANK(K69,Csapat!$C$3:P70,0) -> 1
A68: Név | B68: Sz.év | C68: 60 m | E68: Távolugrás | G68: Klabdahajítás | I68: Összpont | J68: Helyezés
A69: Drexler Lóránt József | B69: 2006 | C69: 8.82 | D69: =IF(C69<6.19,0,VLOOKUP(C69,rfut,5,TRUE)) -> 169 | E69: 3.77 | F69: =IF(E69<1.79,0,VLOOKUP(E69,távol,4,TRUE)) -> 87 | G69: 36.21 | H69: =IF(G69<4,0,VLOOKUP(G69,kisl,2,TRUE)) -> 91 | I69: =SUM(D69,F69,H69) -> 347 | J69: =RANK(I69,Egyéni!$J$3:$J$136,0) -> 4 | K69: =SUM(I69:I74)-MIN(I69:I74)+K74 -> 1807
A70: Grósz Gergő | B70: 2006 | C70: 8.87 | D70: 167 | E70: 4.25 | F70: 110 | G70: 35.42 | H70: 89 | I70: 366 | J70: =RANK(I70,Egyéni!$J$3:$J$136,0) -> 2
A71: Kerék Patrik | B71: 2006 | C71: 9.42 | D71: 142 | E71: 3.97 | F71: 96 | G71: 36.09 | H71: 91 | I71: 329 | J71: =RANK(I71,Egyéni!$J$3:$J$136,0) -> 7
A72: Varga Tamás | B72: 2006 | C72: 9.86 | D72: 124 | E72: 3.83 | F72: 89 | G72: 22.41 | H72: 50 | I72: 263 | J72: =RANK(I72,Egyéni!$J$3:$J$136,0) -> 27
A73: Mohai Bálint | B73: 2006 | C73: 9.23 | D73: 150 | E73: 3.84 | F73: 90 | G73: 28.21 | H73: 67 | I73: 307 | J73: =RANK(I73,Egyéni!$J$3:$J$136,0) -> 15 | K73: 4×100 | L73: 00:00:58.620
A74: Németh Péter | B74: 2006 | C74: 10.26 | D74: 107 | E74: 3.39 | F74: 69 | G74: 34.01 | H74: 85 | I74: 261 | J74: =RANK(I74,Egyéni!$J$3:$J$136,0) -> 29 | K74: =IF(L73<fiú!$D$2,0,VLOOKUP(L73,hfut,3,TRUE)) -> 195
A77: Vörösmarty Mihály Általános Iskola Székesfehérvár | K77: =RANK(K79,Csapat!$C$3:P80,0) -> 6
A78: Név | B78: Sz.év | C78: 60 m | E78: Távolugrás | G78: Klabdahajítás | I78: Összpont | J78: Helyezés
A79: Dávid Ármin | B79: 2006 | C79: 9.41 | D79: =IF(C79<6.19,0,VLOOKUP(C79,rfut,5,TRUE)) -> 143 | E79: 4.13 | F79: =IF(E79<1.79,0,VLOOKUP(E79,távol,4,TRUE)) -> 104 | G79: 28.56 | H79: =IF(G79<4,0,VLOOKUP(G79,kisl,2,TRUE)) -> 68 | I79: =SUM(D79,F79,H79) -> 315 | J79: =RANK(I79,Egyéni!$J$3:$J$136,0) -> 12 | K79: =SUM(I79:I84)-MIN(I79:I84)+K84 -> 1415
A80: Fábián Barnabás | B80: 2006 | C80: 10.3 | D80: 106 | E80: 3.28 | F80: 64 | G80: 24.92 | H80: 58 | I80: 228 | J80: =RANK(I80,Egyéni!$J$3:$J$136,0) -> 37
A81: Szalay Levente | B81: 2006 | C81: 9.98 | D81: 119 | E81: 3.26 | F81: 63 | G81: 31.09 | H81: 76 | I81: 258 | J81: =RANK(I81,Egyéni!$J$3:$J$136,0) -> 31
A82: Mészáros Noel | B82: 2006 | C82: 10.01 | D82: 118 | E82: 3.48 | F82: 73 | G82: 24.13 | H82: 55 | I82: 246 | J82: =RANK(I82,Egyéni!$J$3:$J$136,0) -> 34
A83: Sági Bálint | B83: 2007 | C83: 10.2 | D83: 110 | E83: 3.51 | F83: 75 | G83: 17.62 | H83: 37 | I83: 222 | J83: =RANK(I83,Egyéni!$J$3:$J$136,0) -> 39 | K83: 4×100 | L83: 00:01:03.160
D84: 0 | F84: 0 | H84: 0 | I84: 0 | J84: =RANK(I84,Egyéni!$J$3:$J$136,0) -> 45 | K84: =IF(L83<fiú!$D$2,0,VLOOKUP(L83,hfut,3,TRUE)) -> 146
A87: Gorsium Általános Iskola és Csősz Általános Iskola Tagintézmény Tác | K87: =RANK(K89,Csapat!$C$3:P90,0) -> 4
A88: Név | B88: Sz.év | C88: 60 m | E88: Távolugrás | G88: Klabdahajítás | I88: Összpont | J88: Helyezés
A89: Csehák Botond | B89: 2006 | C89: 10.02 | D89: =IF(C89<6.19,0,VLOOKUP(C89,rfut,5,TRUE)) -> 117 | E89: 3.8 | F89: =IF(E89<1.79,0,VLOOKUP(E89,távol,4,TRUE)) -> 88 | G89: 35.29 | H89: =IF(G89<4,0,VLOOKUP(G89,kisl,2,TRUE)) -> 89 | I89: =SUM(D89,F89,H89) -> 294 | J89: =RANK(I89,Egyéni!$J$3:$J$136,0) -> 19 | K89: =SUM(I89:I94)-MIN(I89:I94)+K94 -> 1536
A90: Dallos Mirkó Benedek | B90: 2007 | C90: 10.27 | D90: 107 | E90: 3.71 | F90: 84 | G90: 25.67 | H90: 60 | I90: 251 | J90: =RANK(I90,Egyéni!$J$3:$J$136,0) -> 32
A91: Gellén Zsolt Patrik | B91: 2006 | C91: 9.88 | D91: 123 | E91: 3.82 | F91: 89 | G91: 29.86 | H91: 72 | I91: 284 | J91: =RANK(I91,Egyéni!$J$3:$J$136,0) -> 21
A92: Szauter Bercel | B92: 2007 | C92: 10.43 | D92: 100 | E92: 3.35 | F92: 67 | G92: 26.46 | H92: 62 | I92: 229 | J92: =RANK(I92,Egyéni!$J$3:$J$136,0) -> 36
A93: Szimander Gergő | B93: 2007 | C93: 11.36 | D93: 65 | E93: 3.21 | F93: 61 | G93: 23.33 | H93: 53 | I93: 179 | J93: =RANK(I93,Egyéni!$J$3:$J$136,0) -> 44 | K93: 4×100 | L93: 00:01:02.880
A94: Trenka Ádám | B94: 2006 | C94: 9.32 | D94: 146 | E94: 4.14 | F94: 104 | G94: 31.97 | H94: 79 | I94: 329 | J94: =RANK(I94,Egyéni!$J$3:$J$136,0) -> 7 | K94: =IF(L93<fiú!$D$2,0,VLOOKUP(L93,hfut,3,TRUE)) -> 149
K97: =RANK(K99,Csapat!$C$3:P100,0) -> 8
A98: Név | B98: Sz.év | C98: 60 m | E98: Távolugrás | G98: Klabdahajítás | I98: Összpont | J98: Helyezés
D99: =IF(C99<6.19,0,VLOOKUP(C99,rfut,5,TRUE)) -> 0 | F99: =IF(E99<1.79,0,VLOOKUP(E99,távol,4,TRUE)) -> 0 | H99: =IF(G99<4,0,VLOOKUP(G99,kisl,2,TRUE)) -> 0 | I99: =SUM(D99,F99,H99) -> 0 | J99: =RANK(I99,Egyéni!$J$3:$J$136,0) -> 45 | K99: =SUM(I99:I104)-MIN(I99:I104)+K104 -> 0
D100: 0 | F100: 0 | H100: 0 | I100: 0 | J100: =RANK(I100,Egyéni!$J$3:$J$136,0) -> 45
D101: 0 | F101: 0 | H101: 0 | I101: 0 | J101: =RANK(I101,Egyéni!$J$3:$J$136,0) -> 45
D102: 0 | F102: 0 | H102: 0 | I102: 0 | J102: =RANK(I102,Egyéni!$J$3:$J$136,0) -> 45
D103: 0 | F103: 0 | H103: 0 | I103: 0 | J103: =RANK(I103,Egyéni!$J$3:$J$136,0) -> 45 | K103: 4×100
D104: 0 | F104: 0 | H104: 0 | I104: 0 | J104: =RANK(I104,Egyéni!$J$3:$J$136,0) -> 45 | K104: =IF(L103<fiú!$D$2,0,VLOOKUP(L103,hfut,3,TRUE)) -> 0
K107: =RANK(K109,Csapat!$C$3:P110,0) -> 8
A108: Név | B108: Sz.év | C108: 60 m | E108: Távolugrás | G108: Klabdahajítás | I108: Összpont | J108: Helyezés
D109: =IF(C109<6.19,0,VLOOKUP(C109,rfut,5,TRUE)) -> 0 | F109: =IF(E109<1.79,0,VLOOKUP(E109,távol,4,TRUE)) -> 0 | H109: =IF(G109<4,0,VLOOKUP(G109,kisl,2,TRUE)) -> 0 | I109: =SUM(D109,F109,H109) -> 0 | J109: =RANK(I109,Egyéni!$J$3:$J$136,0) -> 45 | K109: =SUM(I109:I114)-MIN(I109:I114)+K114 -> 0
D110: 0 | F110: 0 | H110: 0 | I110: 0 | J110: =RANK(I110,Egyéni!$J$3:$J$136,0) -> 45
D111: 0 | F111: 0 | H111: 0 | I111: 0 | J111: =RANK(I111,Egyéni!$J$3:$J$136,0) -> 45
D112: 0 | F112: 0 | H112: 0 | I112: 0 | J112: =RANK(I112,Egyéni!$J$3:$J$136,0) -> 45
D113: 0 | F113: 0 | H113: 0 | I113: 0 | J113: =RANK(I113,Egyéni!$J$3:$J$136,0) -> 45 | K113: 4×100
D114: 0 | F114: 0 | H114: 0 | I114: 0 | J114: =RANK(I114,Egyéni!$J$3:$J$136,0) -> 45 | K114: =IF(L113<fiú!$D$2,0,VLOOKUP(L113,hfut,3,TRUE)) -> 0
K117: =RANK(K119,Csapat!$C$3:P120,0) -> 8
A118: Név | B118: Sz.év | C118: 60 m | E118: Távolugrás | G118: Klabdahajítás | I118: Összpont | J118: Helyezés
D119: =IF(C119<6.19,0,VLOOKUP(C119,rfut,5,TRUE)) -> 0 | F119: =IF(E119<1.79,0,VLOOKUP(E119,távol,4,TRUE)) -> 0 | H119: =IF(G119<4,0,VLOOKUP(G119,kisl,2,TRUE)) -> 0 | I119: =SUM(D119,F119,H119) -> 0 | J119: =RANK(I119,Egyéni!$J$3:$J$136,0) -> 45 | K119: =SUM(I119:I124)-MIN(I119:I124)+K124 -> 0
D120: 0 | F120: 0 | H120: 0 | I120: 0 | J120: =RANK(I120,Egyéni!$J$3:$J$136,0) -> 45
D121: 0 | F121: 0 | H121: 0 | I121: 0 | J121: =RANK(I121,Egyéni!$J$3:$J$136,0) -> 45
D122: 0 | F122: 0 | H122: 0 | I122: 0 | J122: =RANK(I122,Egyéni!$J$3:$J$136,0) -> 45
D123: 0 | F123: 0 | H123: 0 | I123: 0 | J123: =RANK(I123,Egyéni!$J$3:$J$136,0) -> 45 | K123: 4×100
D124: 0 | F124: 0 | H124: 0 | I124: 0 | J124: =RANK(I124,Egyéni!$J$3:$J$136,0) -> 45 | K124: =IF(L123<fiú!$D$2,0,VLOOKUP(L123,hfut,3,TRUE)) -> 0
K127: =RANK(K129,Csapat!$C$3:P130,0) -> 8
A128: Név | B128: Sz.év | C128: 60 m | E128: Távolugrás | G128: Klabdahajítás | I128: Összpont | J128: Helyezés
D129: =IF(C129<6.19,0,VLOOKUP(C129,rfut,5,TRUE)) -> 0 | F129: =IF(E129<1.79,0,VLOOKUP(E129,távol,4,TRUE)) -> 0 | H129: =IF(G129<4,0,VLOOKUP(G129,kisl,2,TRUE)) -> 0 | I129: =SUM(D129,F129,H129) -> 0 | J129: =RANK(I129,Egyéni!$J$3:$J$136,0) -> 45 | K129: =SUM(I129:I134)-MIN(I129:I134)+K134 -> 0
D130: 0 | F130: 0 | H130: 0 | I130: 0 | J130: =RANK(I130,Egyéni!$J$3:$J$136,0) -> 45
D131: 0 | F131: 0 | H131: 0 | I131: 0 | J131: =RANK(I131,Egyéni!$J$3:$J$136,0) -> 45
D132: 0 | F132: 0 | H132: 0 | I132: 0 | J132: =RANK(I132,Egyéni!$J$3:$J$136,0) -> 45
D133: 0 | F133: 0 | H133: 0 | I133: 0 | J133: =RANK(I133,Egyéni!$J$3:$J$136,0) -> 45 | K133: 4×100
D134: 0 | F134: 0 | H134: 0 | I134: 0 | J134: =RANK(I134,Egyéni!$J$3:$J$136,0) -> 45 | K134: =IF(L133<fiú!$D$2,0,VLOOKUP(L133,hfut,3,TRUE)) -> 0
K137: =RANK(K139,Csapat!$C$3:P140,0) -> 8
A138: Név | B138: Sz.év | C138: 60 m | E138: Távolugrás | G138: Klabdahajítás | I138: Összpont | J138: Helyezés
D139: =IF(C139<6.19,0,VLOOKUP(C139,rfut,5,TRUE)) -> 0 | F139: =IF(E139<1.79,0,VLOOKUP(E139,távol,4,TRUE)) -> 0 | H139: =IF(G139<4,0,VLOOKUP(G139,kisl,2,TRUE)) -> 0 | I139: =SUM(D139,F139,H139) -> 0 | J139: =RANK(I139,Egyéni!$J$3:$J$136,0) -> 45 | K139: =SUM(I139:I144)-MIN(I139:I144)+K144 -> 0
D140: 0 | F140: 0 | H140: 0 | I140: 0 | J140: =RANK(I140,Egyéni!$J$3:$J$136,0) -> 45
D141: 0 | F141: 0 | H141: 0 | I141: 0 | J141: =RANK(I141,Egyéni!$J$3:$J$136,0) -> 45
D142: 0 | F142: 0 | H142: 0 | I142: 0 | J142: =RANK(I142,Egyéni!$J$3:$J$136,0) -> 45
D143: 0 | F143: 0 | H143: 0 | I143: 0 | J143: =RANK(I143,Egyéni!$J$3:$J$136,0) -> 45 | K143: 4×100
D144: 0 | F144: 0 | H144: 0 | I144: 0 | J144: =RANK(I144,Egyéni!$J$3:$J$136,0) -> 45 | K144: =IF(L143<fiú!$D$2,0,VLOOKUP(L143,hfut,3,TRUE)) -> 0
K147: =RANK(K149,Csapat!$C$3:P150,0) -> 8
A148: Név | B148: Sz.év | C148: 60 m | E148: Távolugrás | G148: Klabdahajítás | I148: Összpont | J148: Helyezés
D149: =IF(C149<6.19,0,VLOOKUP(C149,rfut,5,TRUE)) -> 0 | F149: =IF(E149<1.79,0,VLOOKUP(E149,távol,4,TRUE)) -> 0 | H149: =IF(G149<4,0,VLOOKUP(G149,kisl,2,TRUE)) -> 0 | I149: =SUM(D149,F149,H149) -> 0 | J149: =RANK(I149,Egyéni!$J$3:$J$136,0) -> 45 | K149: =SUM(I149:I154)-MIN(I149:I154)+K154 -> 0
D150: 0 | F150: 0 | H150: 0 | I150: 0 | J150: =RANK(I150,Egyéni!$J$3:$J$136,0) -> 45
D151: 0 | F151: 0 | H151: 0 | I151: 0 | J151: =RANK(I151,Egyéni!$J$3:$J$136,0) -> 45
D152: 0 | F152: 0 | H152: 0 | I152: 0 | J152: =RANK(I152,Egyéni!$J$3:$J$136,0) -> 45
D153: 0 | F153: 0 | H153: 0 | I153: 0 | J153: =RANK(I153,Egyéni!$J$3:$J$136,0) -> 45 | K153: 4×100
D154: 0 | F154: 0 | H154: 0 | I154: 0 | J154: =RANK(I154,Egyéni!$J$3:$J$136,0) -> 45 | K154: =IF(L153<fiú!$D$2,0,VLOOKUP(L153,hfut,3,TRUE)) -> 0
K157: =RANK(K159,Csapat!$C$3:P160,0) -> 8
A158: Név | B158: Sz.év | C158: 60 m | E158: Távolugrás | G158: Klabdahajítás | I158: Összpont | J158: Helyezés
D159: =IF(C159<6.19,0,VLOOKUP(C159,rfut,5,TRUE)) -> 0 | F159: =IF(E159<1.79,0,VLOOKUP(E159,távol,4,TRUE)) -> 0 | H159: =IF(G159<4,0,VLOOKUP(G159,kisl,2,TRUE)) -> 0 | I159: =SUM(D159,F159,H159) -> 0 | J159: =RANK(I159,Egyéni!$J$3:$J$136,0) -> 45 | K159: =SUM(I159:I164)-MIN(I159:I164)+K164 -> 0
D160: 0 | F160: 0 | H160: 0 | I160: 0 | J160: =RANK(I160,Egyéni!$J$3:$J$136,0) -> 45
D161: 0 | F161: 0 | H161: 0 | I161: 0 | J161: =RANK(I161,Egyéni!$J$3:$J$136,0) -> 45
D162: 0 | F162: 0 | H162: 0 | I162: 0 | J162: =RANK(I162,Egyéni!$J$3:$J$136,0) -> 45
D163: 0 | F163: 0 | H163: 0 | I163: 0 | J163: =RANK(I163,Egyéni!$J$3:$J$136,0) -> 45 | K163: 4×100
D164: 0 | F164: 0 | H164: 0 | I164: 0 | J164: =RANK(I164,Egyéni!$J$3:$J$136,0) -> 45 | K164: =IF(L163<fiú!$D$2,0,VLOOKUP(L163,hfut,3,TRUE)) -> 0
K167: =RANK(K169,Csapat!$C$3:P170,0) -> 8
A168: Név | B168: Sz.év | C168: 60 m | E168: Távolugrás | G168: Klabdahajítás | I168: Összpont | J168: Helyezés
D169: =IF(C169<6.19,0,VLOOKUP(C169,rfut,5,TRUE)) -> 0 | F169: =IF(E169<1.79,0,VLOOKUP(E169,távol,4,TRUE)) -> 0 | H169: =IF(G169<4,0,VLOOKUP(G169,kisl,2,TRUE)) -> 0 | I169: =SUM(D169,F169,H169) -> 0 | J169: =RANK(I169,Egyéni!$J$3:$J$136,0) -> 45 | K169: =SUM(I169:I174)-MIN(I169:I174)+K174 -> 0
D170: 0 | F170: 0 | H170: 0 | I170: 0 | J170: =RANK(I170,Egyéni!$J$3:$J$136,0) -> 45
D171: 0 | F171: 0 | H171: 0 | I171: 0 | J171: =RANK(I171,Egyéni!$J$3:$J$136,0) -> 45
D172: 0 | F172: 0 | H172: 0 | I172: 0 | J172: =RANK(I172,Egyéni!$J$3:$J$136,0) -> 45
D173: 0 | F173: 0 | H173: 0 | I173: 0 | J173: =RANK(I173,Egyéni!$J$3:$J$136,0) -> 45 | K173: 4×100
D174: 0 | F174: 0 | H174: 0 | I174: 0 | J174: =RANK(I174,Egyéni!$J$3:$J$136,0) -> 45 | K174: =IF(L173<fiú!$D$2,0,VLOOKUP(L173,hfut,3,TRUE)) -> 0
K177: =RANK(K179,Csapat!$C$3:P180,0) -> 8
A178: Név | B178: Sz.év | C178: 60 m | E178: Távolugrás | G178: Klabdahajítás | I178: Összpont | J178: Helyezés
D179: =IF(C179<6.19,0,VLOOKUP(C179,rfut,5,TRUE)) -> 0 | F179: =IF(E179<1.79,0,VLOOKUP(E179,távol,4,TRUE)) -> 0 | H179: =IF(G179<4,0,VLOOKUP(G179,kisl,2,TRUE)) -> 0 | I179: =SUM(D179,F179,H179) -> 0 | J179: =RANK(I179,Egyéni!$J$3:$J$136,0) -> 45 | K179: =SUM(I179:I184)-MIN(I179:I184)+K184 -> 0
D180: 0 | F180: 0 | H180: 0 | I180: 0 | J180: =RANK(I180,Egyéni!$J$3:$J$136,0) -> 45
D181: 0 | F181: 0 | H181: 0 | I181: 0 | J181: =RANK(I181,Egyéni!$J$3:$J$136,0) -> 45
D182: 0 | F182: 0 | H182: 0 | I182: 0 | J182: =RANK(I182,Egyéni!$J$3:$J$136,0) -> 45
D183: 0 | F183: 0 | H183: 0 | I183: 0 | J183: =RANK(I183,Egyéni!$J$3:$J$136,0) -> 45 | K183: 4×100
D184: 0 | F184: 0 | H184: 0 | I184: 0 | J184: =RANK(I184,Egyéni!$J$3:$J$136,0) -> 45 | K184: =IF(L183<fiú!$D$2,0,VLOOKUP(L183,hfut,3,TRUE)) -> 0
K187: =RANK(K189,Csapat!$C$3:P190,0) -> 8
A188: Név | B188: Sz.év | C188: 60 m | E188: Távolugrás | G188: Klabdahajítás | I188: Összpont | J188: Helyezés
D189: =IF(C189<6.19,0,VLOOKUP(C189,rfut,5,TRUE)) -> 0 | F189: =IF(E189<1.79,0,VLOOKUP(E189,távol,4,TRUE)) -> 0 | H189: =IF(G189<4,0,VLOOKUP(G189,kisl,2,TRUE)) -> 0 | I189: =SUM(D189,F189,H189) -> 0 | J189: =RANK(I189,Egyéni!$J$3:$J$136,0) -> 45 | K189: =SUM(I189:I194)-MIN(I189:I194)+K194 -> 0
D190: 0 | F190: 0 | H190: 0 | I190: 0 | J190: =RANK(I190,Egyéni!$J$3:$J$136,0) -> 45
D191: 0 | F191: 0 | H191: 0 | I191: 0 | J191: =RANK(I191,Egyéni!$J$3:$J$136,0) -> 45
D192: 0 | F192: 0 | H192: 0 | I192: 0 | J192: =RANK(I192,Egyéni!$J$3:$J$136,0) -> 45
D193: 0 | F193: 0 | H193: 0 | I193: 0 | J193: =RANK(I193,Egyéni!$J$3:$J$136,0) -> 45 | K193: 4×100
D194: 0 | F194: 0 | H194: 0 | I194: 0 | J194: =RANK(I194,Egyéni!$J$3:$J$136,0) -> 45 | K194: =IF(L193<fiú!$D$2,0,VLOOKUP(L193,hfut,3,TRUE)) -> 0
K197: =RANK(K199,Csapat!$C$3:P200,0) -> 8
A198: Név | B198: Sz.év | C198: 60 m | E198: Távolugrás | G198: Klabdahajítás | I198: Összpont | J198: Helyezés
D199: =IF(C199<6.19,0,VLOOKUP(C199,rfut,5,TRUE)) -> 0 | F199: =IF(E199<1.79,0,VLOOKUP(E199,távol,4,TRUE)) -> 0 | H199: =IF(G199<4,0,VLOOKUP(G199,kisl,2,TRUE)) -> 0 | I199: =SUM(D199,F199,H199) -> 0 | J199: =RANK(I199,Egyéni!$J$3:$J$136,0) -> 45 | K199: =SUM(I199:I204)-MIN(I199:I204)+K204 -> 0
D200: 0 | F200: 0 | H200: 0 | I200: 0 | J200: =RANK(I200,Egyéni!$J$3:$J$136,0) -> 45
D201: 0 | F201: 0 | H201: 0 | I201: 0 | J201: =RANK(I201,Egyéni!$J$3:$J$136,0) -> 45
D202: 0 | F202: 0 | H202: 0 | I202: 0 | J202: =RANK(I202,Egyéni!$J$3:$J$136,0) -> 45
D203: 0 | F203: 0 | H203: 0 | I203: 0 | J203: =RANK(I203,Egyéni!$J$3:$J$136,0) -> 45 | K203: 4×100
D204: 0 | F204: 0 | H204: 0 | I204: 0 | J204: =RANK(I204,Egyéni!$J$3:$J$136,0) -> 45 | K204: =IF(L203<fiú!$D$2,0,VLOOKUP(L203,hfut,3,TRUE)) -> 0
K207: =RANK(K209,Csapat!$C$3:P210,0) -> 8
A208: Név | B208: Sz.év | C208: 60 m | E208: Távolugrás | G208: Klabdahajítás | I208: Összpont | J208: Helyezés
D209: =IF(C209<6.19,0,VLOOKUP(C209,rfut,5,TRUE)) -> 0 | F209: =IF(E209<1.79,0,VLOOKUP(E209,távol,4,TRUE)) -> 0 | H209: =IF(G209<4,0,VLOOKUP(G209,kisl,2,TRUE)) -> 0 | I209: =SUM(D209,F209,H209) -> 0 | J209: =RANK(I209,Egyéni!$J$3:$J$136,0) -> 45 | K209: =SUM(I209:I214)-MIN(I209:I214)+K214 -> 0
D210: 0 | F210: 0 | H210: 0 | I210: 0 | J210: =RANK(I210,Egyéni!$J$3:$J$136,0) -> 45
D211: 0 | F211: 0 | H211: 0 | I211: 0 | J211: =RANK(I211,Egyéni!$J$3:$J$136,0) -> 45
D212: 0 | F212: 0 | H212: 0 | I212: 0 | J212: =RANK(I212,Egyéni!$J$3:$J$136,0) -> 45
D213: 0 | F213: 0 | H213: 0 | I213: 0 | J213: =RANK(I213,Egyéni!$J$3:$J$136,0) -> 45 | K213: 4×100
D214: 0 | F214: 0 | H214: 0 | I214: 0 | J214: =RANK(I214,Egyéni!$J$3:$J$136,0) -> 45 | K214: =IF(L213<fiú!$D$2,0,VLOOKUP(L213,hfut,3,TRUE)) -> 0
K217: =RANK(K219,Csapat!$C$3:P220,0) -> 8
A218: Név | B218: Sz.év | C218: 60 m | E218: Távolugrás | G218: Klabdahajítás | I218: Összpont | J218: Helyezés
D219: =IF(C219<6.19,0,VLOOKUP(C219,rfut,5,TRUE)) -> 0 | F219: =IF(E219<1.79,0,VLOOKUP(E219,távol,4,TRUE)) -> 0 | H219: =IF(G219<4,0,VLOOKUP(G219,kisl,2,TRUE)) -> 0 | I219: =SUM(D219,F219,H219) -> 0 | J219: =RANK(I219,Egyéni!$J$3:$J$136,0) -> 45 | K219: =SUM(I219:I224)-MIN(I219:I224)+K224 -> 0
D220: 0 | F220: 0 | H220: 0 | I220: 0 | J220: =RANK(I220,Egyéni!$J$3:$J$136,0) -> 45
D221: 0 | F221: 0 | H221: 0 | I221: 0 | J221: =RANK(I221,Egyéni!$J$3:$J$136,0) -> 45
D222: 0 | F222: 0 | H222: 0 | I222: 0 | J222: =RANK(I222,Egyéni!$J$3:$J$136,0) -> 45
D223: 0 | F223: 0 | H223: 0 | I223: 0 | J223: =RANK(I223,Egyéni!$J$3:$J$136,0) -> 45 | K223: 4×100
D224: 0 | F224: 0 | H224: 0 | I224: 0 | J224: =RANK(I224,Egyéni!$J$3:$J$136,0) -> 45 | K224: =IF(L223<fiú!$D$2,0,VLOOKUP(L223,hfut,3,TRUE)) -> 0
K227: =RANK(K229,Csapat!$C$3:P230,0) -> 8
A228: Név | B228: Sz.év | C228: 60 m | E228: Távolugrás | G228: Klabdahajítás | I228: Összpont | J228: Helyezés
D229: =IF(C229<6.19,0,VLOOKUP(C229,rfut,5,TRUE)) -> 0 | F229: =IF(E229<1.79,0,VLOOKUP(E229,távol,4,TRUE)) -> 0 | H229: =IF(G229<4,0,VLOOKUP(G229,kisl,2,TRUE)) -> 0 | I229: =SUM(D229,F229,H229) -> 0 | J229: =RANK(I229,Egyéni!$J$3:$J$136,0) -> 45 | K229: =SUM(I229:I234)-MIN(I229:I234)+K234 -> 0
D230: 0 | F230: 0 | H230: 0 | I230: 0 | J230: =RANK(I230,Egyéni!$J$3:$J$136,0) -> 45
D231: 0 | F231: 0 | H231: 0 | I231: 0 | J231: =RANK(I231,Egyéni!$J$3:$J$136,0) -> 45
D232: 0 | F232: 0 | H232: 0 | I232: 0 | J232: =RANK(I232,Egyéni!$J$3:$J$136,0) -> 45
D233: 0 | F233: 0 | H233: 0 | I233: 0 | J233: =RANK(I233,Egyéni!$J$3:$J$136,0) -> 45 | K233: 4×100
D234: 0 | F234: 0 | H234: 0 | I234: 0 | J234: =RANK(I234,Egyéni!$J$3:$J$136,0) -> 45 | K234: =IF(L233<fiú!$D$2,0,VLOOKUP(L233,hfut,3,TRUE)) -> 0
K237: =RANK(K239,Csapat!$C$3:P240,0) -> 8
A238: Név | B238: Sz.év | C238: 60 m | E238: Távolugrás | G238: Klabdahajítás | I238: Összpont | J238: Helyezés
D239: =IF(C239<6.19,0,VLOOKUP(C239,rfut,5,TRUE)) -> 0 | F239: =IF(E239<1.79,0,VLOOKUP(E239,távol,4,TRUE)) -> 0 | H239: =IF(G239<4,0,VLOOKUP(G239,kisl,2,TRUE)) -> 0 | I239: =SUM(D239,F239,H239) -> 0 | J239: =RANK(I239,Egyéni!$J$3:$J$136,0) -> 45 | K239: =SUM(I239:I244)-MIN(I239:I244)+K244 -> 0
D240: 0 | F240: 0 | H240: 0 | I240: 0 | J240: =RANK(I240,Egyéni!$J$3:$J$136,0) -> 45
D241: 0 | F241: 0 | H241: 0 | I241: 0 | J241: =RANK(I241,Egyéni!$J$3:$J$136,0) -> 45
D242: 0 | F242: 0 | H242: 0 | I242: 0 | J242: =RANK(I242,Egyéni!$J$3:$J$136,0) -> 45
D243: 0 | F243: 0 | H243: 0 | I243: 0 | J243: =RANK(I243,Egyéni!$J$3:$J$136,0) -> 45 | K243: 4×100
D244: 0 | F244: 0 | H244: 0 | I244: 0 | J244: =RANK(I244,Egyéni!$J$3:$J$136,0) -> 45 | K244: =IF(L243<fiú!$D$2,0,VLOOKUP(L243,hfut,3,TRUE)) -> 0

Sheet Egyéni
A1: II. korcsoport FIÚ EGYÉNI végeredmény (Rendezés Ctrl + a )
A2: Ssz | B2: Név | C2: Szév | D2: 60 m | E2: p | F2: T | G2: p | H2: Kisl | I2: p | J2: Összp | L2: Iskola
A3: 1. | B3: =Be!A6 -> Simotics Máté | C3: =Be!B6 -> 2006 | D3: =Be!C6 -> 9.03 | E3: =Be!D6 -> 159 | F3: =Be!E6 -> 4.5 | G3: =Be!F6 -> 122 | H3: =Be!G6 -> 42.77 | I3: =Be!H6 -> 112 | J3: =Be!I6 -> 393 | L3: =Be!K6 -> Batthyány Fülöp Gimn. ás Ált. Isk. Enying
A4: 2. | B4: =Be!A70 -> Grósz Gergő | C4: =Be!B70 -> 2006 | D4: =Be!C70 -> 8.87 | E4: =Be!D70 -> 167 | F4: =Be!E70 -> 4.25 | G4: =Be!F70 -> 110 | H4: =Be!G70 -> 35.42 | I4: =Be!H70 -> 89 | J4: =Be!I70 -> 366 | L4: =Be!A67 -> Tóvárosi Általános Iskola Székesfehérvár
A5: 3. | B5: =Be!A50 -> Hekele Dániel | C5: =Be!B50 -> 2006 | D5: =Be!C50 -> 9.02 | E5: =Be!D50 -> 160 | F5: =Be!E50 -> 4.5 | G5: =Be!F50 -> 122 | H5: =Be!G50 -> 31.23 | I5: =Be!H50 -> 76 | J5: =Be!I50 -> 358 | L5: =Be!A47 -> Kossuth Lajos Általános Iskola Nagyvenyim
A6: 4. | B6: =Be!A69 -> Drexler Lóránt József | C6: =Be!B69 -> 2006 | D6: =Be!C69 -> 8.82 | E6: =Be!D69 -> 169 | F6: =Be!E69 -> 3.77 | G6: =Be!F69 -> 87 | H6: =Be!G69 -> 36.21 | I6: =Be!H69 -> 91 | J6: =Be!I69 -> 347 | L6: =Be!A67 -> Tóvárosi Általános Iskola Székesfehérvár
A7: 5. | B7: =Be!A62 -> Králik András | C7: =Be!B62 -> 2006 | D7: =Be!C62 -> 9.24 | E7: =Be!D62 -> 150 | F7: =Be!E62 -> 3.99 | G7: =Be!F62 -> 97 | H7: =Be!G62 -> 33.43 | I7: =Be!H62 -> 83 | J7: =Be!I62 -> 330 | L7: =Be!A57 -> Hétvezér Általános Iskola Székesfehérvár
A8: 6. | B8: Vörösmarty Milán | C8: 2006 | D8: 9.35 | E8: 145 | F8: 3.95 | G8: 95 | H8: 37.09 | I8: 94 | J8: 334 | L8: Móri Radnóti Miklós Általános Iskola Mór
A9: 7. | B9: =Be!A71 -> Kerék Patrik | C9: =Be!B71 -> 2006 | D9: =Be!C71 -> 9.42 | E9: =Be!D71 -> 142 | F9: =Be!E71 -> 3.97 | G9: =Be!F71 -> 96 | H9: =Be!G71 -> 36.09 | I9: =Be!H71 -> 91 | J9: =Be!I71 -> 329 | L9: =Be!A67 -> Tóvárosi Általános Iskola Székesfehérvár
A10: 8. | B10: =Be!A94 -> Trenka Ádám | C10: =Be!B94 -> 2006 | D10: =Be!C94 -> 9.32 | E10: =Be!D94 -> 146 | F10: =Be!E94 -> 4.14 | G10: =Be!F94 -> 104 | H10: =Be!G94 -> 31.97 | I10: =Be!H94 -> 79 | J10: =Be!I94 -> 329 | L10: =Be!A87 -> Gorsium Általános Iskola és Csősz Általános Iskola Tagintézmény Tác
A11: 9. | B11: =Be!A63 -> Sógorka Dávid | C11: =Be!B63 -> 2006 | D11: =Be!C63 -> 9.44 | E11: =Be!D63 -> 141 | F11: =Be!E63 -> 4.03 | G11: =Be!F63 -> 99 | H11: =Be!G63 -> 33.44 | I11: =Be!H63 -> 83 | J11: =Be!I63 -> 323 | L11: =Be!A57 -> Hétvezér Általános Iskola Székesfehérvár
A12: 10. | B12: =Be!A64 -> Zákány Zénó | C12: =Be!B64 -> 2006 | D12: =Be!C64 -> 9.34 | E12: =Be!D64 -> 146 | F12: =Be!E64 -> 3.96 | G12: =Be!F64 -> 95 | H12: =Be!G64 -> 32.75 | I12: =Be!H64 -> 81 | J12: =Be!I64 -> 322 | L12: =Be!A57 -> Hétvezér Általános Iskola Székesfehérvár
A13: 11. | B13: =Be!A54 -> Wéber Róbert | C13: =Be!B54 -> 2007 | D13: =Be!C54 -> 8.84 | E13: =Be!D54 -> 168 | F13: =Be!E54 -> 3.89 | G13: =Be!F54 -> 92 | H13: =Be!G54 -> 24.4 | I13: =Be!H54 -> 56 | J13: =Be!I54 -> 316 | L13: =Be!A47 -> Kossuth Lajos Általános Iskola Nagyvenyim
A14: 12. | B14: =Be!A79 -> Dávid Ármin | C14: =Be!B79 -> 2006 | D14: =Be!C79 -> 9.41 | E14: =Be!D79 -> 143 | F14: =Be!E79 -> 4.13 | G14: =Be!F79 -> 104 | H14: =Be!G79 -> 28.56 | I14: =Be!H79 -> 68 | J14: =Be!I79 -> 315 | L14: =Be!A77 -> Vörösmarty Mihály Általános Iskola Székesfehérvár
A15: 13. | B15: =Be!A51 -> Kolompár Lajos | C15: =Be!B51 -> 2006 | D15: =Be!C51 -> 9.47 | E15: =Be!D51 -> 140 | F15: =Be!E51 -> 3.92 | G15: =Be!F51 -> 93 | H15: =Be!G51 -> 32.44 | I15: =Be!H51 -> 80 | J15: =Be!I51 -> 313 | L15: =Be!A47 -> Kossuth Lajos Általános Iskola Nagyvenyim
A16: 14. | B16: =Be!A5 -> Kecskés Zsombor | C16: =Be!B5 -> 2006 | D16: =Be!C5 -> 9.36 | E16: =Be!D5 -> 145 | F16: =Be!E5 -> 3.66 | G16: =Be!F5 -> 81 | H16: =Be!G5 -> 34.52 | I16: =Be!H5 -> 86 | J16: =Be!I5 -> 312 | L16: =Be!K5 -> Váli Vajda János Általános Iskola Vál
A17: 15. | B17: =Be!A73 -> Mohai Bálint | C17: =Be!B73 -> 2006 | D17: =Be!C73 -> 9.23 | E17: =Be!D73 -> 150 | F17: =Be!E73 -> 3.84 | G17: =Be!F73 -> 90 | H17: =Be!G73 -> 28.21 | I17: =Be!H73 -> 67 | J17: =Be!I73 -> 307 | L17: =Be!A67 -> Tóvárosi Általános Iskola Székesfehérvár
A18: 16. | B18: =Be!A43 -> Zsédely Levente | C18: =Be!B43 -> 2007 | D18: =Be!C43 -> 9.42 | E18: =Be!D43 -> 142 | F18: =Be!E43 -> 3.88 | G18: =Be!F43 -> 92 | H18: =Be!G43 -> 28.87 | I18: =Be!H43 -> 69 | J18: =Be!I43 -> 303 | L18: =Be!A37 -> Szent Erzsébet Római Katolikus Általános Iskola Mór
A19: 17. | B19: =Be!A40 -> Jánni Ákos | C19: =Be!B40 -> 2006 | D19: =Be!C40 -> 9.86 | E19: =Be!D40 -> 124 | F19: =Be!E40 -> 3.67 | G19: =Be!F40 -> 82 | H19: =Be!G40 -> 37.17 | I19: =Be!H40 -> 94 | J19: =Be!I40 -> 300 | L19: =Be!A37 -> Szent Erzsébet Római Katolikus Általános Iskola Mór
A20: 18. | B20: =Be!A52 -> Kolompár Milán Rómeó | C20: =Be!B52 -> 2006 | D20: =Be!C52 -> 9.83 | E20: =Be!D52 -> 125 | F20: =Be!E52 -> 3.43 | G20: =Be!F52 -> 71 | H20: =Be!G52 -> 39.26 | I20: =Be!H52 -> 101 | J20: =Be!I52 -> 297 | L20: =Be!A47 -> Kossuth Lajos Általános Iskola Nagyvenyim
A21: 19. | B21: =Be!A89 -> Csehák Botond | C21: =Be!B89 -> 2006 | D21: =Be!C89 -> 10.02 | E21: =Be!D89 -> 117 | F21: =Be!E89 -> 3.8 | G21: =Be!F89 -> 88 | H21: =Be!G89 -> 35.29 | I21: =Be!H89 -> 89 | J21: =Be!I89 -> 294 | L21: =Be!A87 -> Gorsium Általános Iskola és Csősz Általános Iskola Tagintézmény Tác
A22: 20. | B22: =Be!A30 -> Antal Márton | C22: =Be!B30 -> 2006 | D22: =Be!C30 -> 9.38 | E22: =Be!D30 -> 144 | F22: =Be!E30 -> 3.52 | G22: =Be!F30 -> 75 | H22: =Be!G30 -> 29.73 | I22: =Be!H30 -> 72 | J22: =Be!I30 -> 291 | L22: =Be!A27 -> Alcsútdobozi József Nádor Általános Iskola Alcsútdoboz
A23: 21. | B23: =Be!A59 -> Keserü Balázs | C23: =Be!B59 -> 2006 | D23: =Be!C59 -> 9.89 | E23: =Be!D59 -> 123 | F23: =Be!E59 -> 3.63 | G23: =Be!F59 -> 80 | H23: =Be!G59 -> 32.72 | I23: =Be!H59 -> 81 | J23: =Be!I59 -> 284 | L23: =Be!A57 -> Hétvezér Általános Iskola Székesfehérvár
A24: 22. | B24: =Be!A91 -> Gellén Zsolt Patrik | C24: =Be!B91 -> 2006 | D24: =Be!C91 -> 9.88 | E24: =Be!D91 -> 123 | F24: =Be!E91 -> 3.82 | G24: =Be!F91 -> 89 | H24: =Be!G91 -> 29.86 | I24: =Be!H91 -> 72 | J24: =Be!I91 -> 284 | L24: =Be!A87 -> Gorsium Általános Iskola és Csősz Általános Iskola Tagintézmény Tác
A25: 23. | B25: =Be!A60 -> Kovács Kristóf | C25: =Be!B60 -> 2006 | D25: =Be!C60 -> 9.96 | E25: =Be!D60 -> 120 | F25: =Be!E60 -> 3.63 | G25: =Be!F60 -> 80 | H25: =Be!G60 -> 33.23 | I25: =Be!H60 -> 82 | J25: =Be!I60 -> 282 | L25: =Be!A57 -> Hétvezér Általános Iskola Székesfehérvár
A26: 24. | B26: =Be!A61 -> Kovács Zsombor | C26: =Be!B61 -> 2006 | D26: =Be!C61 -> 9.66 | E26: =Be!D61 -> 132 | F26: =Be!E61 -> 3.72 | G26: =Be!F61 -> 84 | H26: =Be!G61 -> 27.59 | I26: =Be!H61 -> 66 | J26: =Be!I61 -> 282 | L26: =Be!A57 -> Hétvezér Általános Iskola Székesfehérvár
A27: 25. | B27: =Be!A41 -> Lenchés Tamás | C27: =Be!B41 -> 2006 | D27: =Be!C41 -> 9.71 | E27: =Be!D41 -> 130 | F27: =Be!E41 -> 3.26 | G27: =Be!F41 -> 63 | H27: =Be!G41 -> 32.03 | I27: =Be!H41 -> 79 | J27: =Be!I41 -> 272 | L27: =Be!A37 -> Szent Erzsébet Római Katolikus Általános Iskola Mór
A28: 26. | B28: =Be!A42 -> Szemeti Márton | C28: =Be!B42 -> 2006 | D28: =Be!C42 -> 9.96 | E28: =Be!D42 -> 120 | F28: =Be!E42 -> 3.21 | G28: =Be!F42 -> 61 | H28: =Be!G42 -> 34.31 | I28: =Be!H42 -> 86 | J28: =Be!I42 -> 267 | L28: =Be!A37 -> Szent Erzsébet Római Katolikus Általános Iskola Mór
A29: 27. | B29: =Be!A53 -> Mess Ferenc Gergő | C29: =Be!B53 -> 2007 | D29: =Be!C53 -> 9.72 | E29: =Be!D53 -> 130 | F29: =Be!E53 -> 3.45 | G29: =Be!F53 -> 72 | H29: =Be!G53 -> 26.16 | I29: =Be!H53 -> 61 | J29: =Be!I53 -> 263 | L29: =Be!A47 -> Kossuth Lajos Általános Iskola Nagyvenyim
A30: 28. | B30: =Be!A72 -> Varga Tamás | C30: =Be!B72 -> 2006 | D30: =Be!C72 -> 9.86 | E30: =Be!D72 -> 124 | F30: =Be!E72 -> 3.83 | G30: =Be!F72 -> 89 | H30: =Be!G72 -> 22.41 | I30: =Be!H72 -> 50 | J30: =Be!I72 -> 263 | L30: =Be!A67 -> Tóvárosi Általános Iskola Székesfehérvár
A31: 29. | B31: =Be!A74 -> Németh Péter | C31: =Be!B74 -> 2006 | D31: =Be!C74 -> 10.26 | E31: =Be!D74 -> 107 | F31: =Be!E74 -> 3.39 | G31: =Be!F74 -> 69 | H31: =Be!G74 -> 34.01 | I31: =Be!H74 -> 85 | J31: =Be!I74 -> 261 | L31: =Be!A67 -> Tóvárosi Általános Iskola Székesfehérvár
A32: 30. | B32: =Be!A32 -> Budai Kristóf Tamás | C32: =Be!B32 -> 2006 | D32: =Be!C32 -> 9.89 | E32: =Be!D32 -> 123 | F32: =Be!E32 -> 3.6 | G32: =Be!F32 -> 79 | H32: =Be!G32 -> 24.78 | I32: =Be!H32 -> 57 | J32: =Be!I32 -> 259 | L32: =Be!A27 -> Alcsútdobozi József Nádor Általános Iskola Alcsútdoboz
A33: 31. | B33: =Be!A81 -> Szalay Levente | C33: =Be!B81 -> 2006 | D33: =Be!C81 -> 9.98 | E33: =Be!D81 -> 119 | F33: =Be!E81 -> 3.26 | G33: =Be!F81 -> 63 | H33: =Be!G81 -> 31.09 | I33: =Be!H81 -> 76 | J33: =Be!I81 -> 258 | L33: =Be!A77 -> Vörösmarty Mihály Általános Iskola Székesfehérvár
A34: 32. | B34: =Be!A90 -> Dallos Mirkó Benedek | C34: =Be!B90 -> 2007 | D34: =Be!C90 -> 10.27 | E34: =Be!D90 -> 107 | F34: =Be!E90 -> 3.71 | G34: =Be!F90 -> 84 | H34: =Be!G90 -> 25.67 | I34: =Be!H90 -> 60 | J34: =Be!I90 -> 251 | L34: =Be!A87 -> Gorsium Általános Iskola és Csősz Általános Iskola Tagintézmény Tác
A35: 33. | B35: =Be!A39 -> Gellért Zsombor | C35: =Be!B39 -> 2007 | D35: =Be!C39 -> 9.88 | E35: =Be!D39 -> 123 | F35: =Be!E39 -> 3.19 | G35: =Be!F39 -> 60 | H35: =Be!G39 -> 27.2 | I35: =Be!H39 -> 64 | J35: =Be!I39 -> 247 | L35: =Be!A37 -> Szent Erzsébet Római Katolikus Általános Iskola Mór
A36: 34. | B36: =Be!A82 -> Mészáros Noel | C36: =Be!B82 -> 2006 | D36: =Be!C82 -> 10.01 | E36: =Be!D82 -> 118 | F36: =Be!E82 -> 3.48 | G36: =Be!F82 -> 73 | H36: =Be!G82 -> 24.13 | I36: =Be!H82 -> 55 | J36: =Be!I82 -> 246 | L36: =Be!A77 -> Vörösmarty Mihály Általános Iskola Székesfehérvár
A37: 35. | B37: =Be!A29 -> Ángyás Ferenc János | C37: =Be!B29 -> 2006 | D37: =Be!C29 -> 10.4 | E37: =Be!D29 -> 101 | F37: =Be!E29 -> 3.22 | G37: =Be!F29 -> 61 | H37: =Be!G29 -> 31.56 | I37: =Be!H29 -> 77 | J37: =Be!I29 -> 239 | L37: =Be!A27 -> Alcsútdobozi József Nádor Általános Iskola Alcsútdoboz
A38: 36. | B38: =Be!A92 -> Szauter Bercel | C38: =Be!B92 -> 2007 | D38: =Be!C92 -> 10.43 | E38: =Be!D92 -> 100 | F38: =Be!E92 -> 3.35 | G38: =Be!F92 -> 67 | H38: =Be!G92 -> 26.46 | I38: =Be!H92 -> 62 | J38: =Be!I92 -> 229 | L38: =Be!A87 -> Gorsium Általános Iskola és Csősz Általános Iskola Tagintézmény Tác
A39: 37. | B39: =Be!A80 -> Fábián Barnabás | C39: =Be!B80 -> 2006 | D39: =Be!C80 -> 10.3 | E39: =Be!D80 -> 106 | F39: =Be!E80 -> 3.28 | G39: =Be!F80 -> 64 | H39: =Be!G80 -> 24.92 | I39: =Be!H80 -> 58 | J39: =Be!I80 -> 228 | L39: =Be!A77 -> Vörösmarty Mihály Általános Iskola Székesfehérvár
A40: 38. | B40: =Be!A34 -> Marton István | C40: =Be!B34 -> 2006 | D40: =Be!C34 -> 10.5 | E40: =Be!D34 -> 97 | F40: =Be!E34 -> 3.34 | G40: =Be!F34 -> 67 | H40: =Be!G34 -> 25.48 | I40: =Be!H34 -> 59 | J40: =Be!I34 -> 223 | L40: =Be!A27 -> Alcsútdobozi József Nádor Általános Iskola Alcsútdoboz
A41: 39. | B41: =Be!A83 -> Sági Bálint | C41: =Be!B83 -> 2007 | D41: =Be!C83 -> 10.2 | E41: =Be!D83 -> 110 | F41: =Be!E83 -> 3.51 | G41: =Be!F83 -> 75 | H41: =Be!G83 -> 17.62 | I41: =Be!H83 -> 37 | J41: =Be!I83 -> 222 | L41: =Be!A77 -> Vörösmarty Mihály Általános Iskola Székesfehérvár
A42: 40. | B42: =Be!A31 -> Bíró Ádám Levente | C42: =Be!B31 -> 2006 | D42: =Be!C31 -> 10.26 | E42: =Be!D31 -> 107 | F42: =Be!E31 -> 3.11 | G42: =Be!F31 -> 56 | H42: =Be!G31 -> 24.56 | I42: =Be!H31 -> 56 | J42: =Be!I31 -> 219 | L42: =Be!A27 -> Alcsútdobozi József Nádor Általános Iskola Alcsútdoboz
A43: 41. | B43: =Be!A44 -> Krausz Dávid | C43: =Be!B44 -> 2006 | D43: =Be!C44 -> 10.58 | E43: =Be!D44 -> 94 | F43: =Be!E44 -> 2.77 | G43: =Be!F44 -> 41 | H43: =Be!G44 -> 31.07 | I43: =Be!H44 -> 76 | J43: =Be!I44 -> 211 | L43: =Be!A37 -> Szent Erzsébet Római Katolikus Általános Iskola Mór
A44: 42. | B44: =Be!A49 -> Balogh Mátyás | C44: =Be!B49 -> 2007 | D44: =Be!C49 -> 10.97 | E44: =Be!D49 -> 80 | F44: =Be!E49 -> 3.15 | G44: =Be!F49 -> 58 | H44: =Be!G49 -> 29.99 | I44: =Be!H49 -> 73 | J44: =Be!I49 -> 211 | L44: =Be!A47 -> Kossuth Lajos Általános Iskola Nagyvenyim
A45: 43. | B45: =Be!A33 -> Keindl Gergő | C45: =Be!B33 -> 2006 | D45: =Be!C33 -> 10.33 | E45: =Be!D33 -> 104 | F45: =Be!E33 -> 2.8 | G45: =Be!F33 -> 42 | H45: =Be!G33 -> 26.46 | I45: =Be!H33 -> 62 | J45: =Be!I33 -> 208 | L45: =Be!A27 -> Alcsútdobozi József Nádor Általános Iskola Alcsútdoboz
A46: 44. | B46: =Be!A93 -> Szimander Gergő | C46: =Be!B93 -> 2007 | D46: =Be!C93 -> 11.36 | E46: =Be!D93 -> 65 | F46: =Be!E93 -> 3.21 | G46: =Be!F93 -> 61 | H46: =Be!G93 -> 23.33 | I46: =Be!H93 -> 53 | J46: =Be!I93 -> 179 | L46: =Be!A87 -> Gorsium Általános Iskola és Csősz Általános Iskola Tagintézmény Tác
B47: =Be!A99 -> 0 | C47: =Be!B99 -> 0 | D47: =Be!C99 -> 0 | E47: =Be!D99 -> 0 | F47: =Be!E99 -> 0 | G47: =Be!F99 -> 0 | H47: =Be!G99 -> 0 | I47: =Be!H99 -> 0 | J47: =Be!I99 -> 0 | L47: =Be!A97 -> 0
B48: =Be!A100 -> 0 | C48: =Be!B100 -> 0 | D48: =Be!C100 -> 0 | E48: =Be!D100 -> 0 | F48: =Be!E100 -> 0 | G48: =Be!F100 -> 0 | H48: =Be!G100 -> 0 | I48: =Be!H100 -> 0 | J48: =Be!I100 -> 0 | L48: =Be!A97 -> 0
B49: =Be!A101 -> 0 | C49: =Be!B101 -> 0 | D49: =Be!C101 -> 0 | E49: =Be!D101 -> 0 | F49: =Be!E101 -> 0 | G49: =Be!F101 -> 0 | H49: =Be!G101 -> 0 | I49: =Be!H101 -> 0 | J49: =Be!I101 -> 0 | L49: =Be!A97 -> 0
B50: =Be!A102 -> 0 | C50: =Be!B102 -> 0 | D50: =Be!C102 -> 0 | E50: =Be!D102 -> 0 | F50: =Be!E102 -> 0 | G50: =Be!F102 -> 0 | H50: =Be!G102 -> 0 | I50: =Be!H102 -> 0 | J50: =Be!I102 -> 0 | L50: =Be!A97 -> 0
B51: =Be!A103 -> 0 | C51: =Be!B103 -> 0 | D51: =Be!C103 -> 0 | E51: =Be!D103 -> 0 | F51: =Be!E103 -> 0 | G51: =Be!F103 -> 0 | H51: =Be!G103 -> 0 | I51: =Be!H103 -> 0 | J51: =Be!I103 -> 0 | L51: =Be!A97 -> 0
B52: =Be!A104 -> 0 | C52: =Be!B104 -> 0 | D52: =Be!C104 -> 0 | E52: =Be!D104 -> 0 | F52: =Be!E104 -> 0 | G52: =Be!F104 -> 0 | H52: =Be!G104 -> 0 | I52: =Be!H104 -> 0 | J52: =Be!I104 -> 0 | L52: =Be!A97 -> 0
B53: =Be!A109 -> 0 | C53: =Be!B109 -> 0 | D53: =Be!C109 -> 0 | E53: =Be!D109 -> 0 | F53: =Be!E109 -> 0 | G53: =Be!F109 -> 0 | H53: =Be!G109 -> 0 | I53: =Be!H109 -> 0 | J53: =Be!I109 -> 0 | L53: =Be!A107 -> 0
B54: =Be!A110 -> 0 | C54: =Be!B110 -> 0 | D54: =Be!C110 -> 0 | E54: =Be!D110 -> 0 | F54: =Be!E110 -> 0 | G54: =Be!F110 -> 0 | H54: =Be!G110 -> 0 | I54: =Be!H110 -> 0 | J54: =Be!I110 -> 0 | L54: =Be!A107 -> 0
B55: =Be!A111 -> 0 | C55: =Be!B111 -> 0 | D55: =Be!C111 -> 0 | E55: =Be!D111 -> 0 | F55: =Be!E111 -> 0 | G55: =Be!F111 -> 0 | H55: =Be!G111 -> 0 | I55: =Be!H111 -> 0 | J55: =Be!I111 -> 0 | L55: =Be!A107 -> 0
B56: =Be!A112 -> 0 | C56: =Be!B112 -> 0 | D56: =Be!C112 -> 0 | E56: =Be!D112 -> 0 | F56: =Be!E112 -> 0 | G56: =Be!F112 -> 0 | H56: =Be!G112 -> 0 | I56: =Be!H112 -> 0 | J56: =Be!I112 -> 0 | L56: =Be!A107 -> 0
B57: =Be!A113 -> 0 | C57: =Be!B113 -> 0 | D57: =Be!C113 -> 0 | E57: =Be!D113 -> 0 | F57: =Be!E113 -> 0 | G57: =Be!F113 -> 0 | H57: =Be!G113 -> 0 | I57: =Be!H113 -> 0 | J57: =Be!I113 -> 0 | L57: =Be!A107 -> 0
B58: =Be!A114 -> 0 | C58: =Be!B114 -> 0 | D58: =Be!C114 -> 0 | E58: =Be!D114 -> 0 | F58: =Be!E114 -> 0 | G58: =Be!F114 -> 0 | H58: =Be!G114 -> 0 | I58: =Be!H114 -> 0 | J58: =Be!I114 -> 0 | L58: =Be!A107 -> 0
B59: =Be!A119 -> 0 | C59: =Be!B119 -> 0 | D59: =Be!C119 -> 0 | E59: =Be!D119 -> 0 | F59: =Be!E119 -> 0 | G59: =Be!F119 -> 0 | H59: =Be!G119 -> 0 | I59: =Be!H119 -> 0 | J59: =Be!I119 -> 0 | L59: =Be!A117 -> 0
B60: =Be!A120 -> 0 | C60: =Be!B120 -> 0 | D60: =Be!C120 -> 0 | E60: =Be!D120 -> 0 | F60: =Be!E120 -> 0 | G60: =Be!F120 -> 0 | H60: =Be!G120 -> 0 | I60: =Be!H120 -> 0 | J60: =Be!I120 -> 0 | L60: =Be!A117 -> 0
B61: =Be!A121 -> 0 | C61: =Be!B121 -> 0 | D61: =Be!C121 -> 0 | E61: =Be!D121 -> 0 | F61: =Be!E121 -> 0 | G61: =Be!F121 -> 0 | H61: =Be!G121 -> 0 | I61: =Be!H121 -> 0 | J61: =Be!I121 -> 0 | L61: =Be!A117 -> 0
B62: =Be!A122 -> 0 | C62: =Be!B122 -> 0 | D62: =Be!C122 -> 0 | E62: =Be!D122 -> 0 | F62: =Be!E122 -> 0 | G62: =Be!F122 -> 0 | H62: =Be!G122 -> 0 | I62: =Be!H122 -> 0 | J62: =Be!I122 -> 0 | L62: =Be!A117 -> 0
B63: =Be!A123 -> 0 | C63: =Be!B123 -> 0 | D63: =Be!C123 -> 0 | E63: =Be!D123 -> 0 | F63: =Be!E123 -> 0 | G63: =Be!F123 -> 0 | H63: =Be!G123 -> 0 | I63: =Be!H123 -> 0 | J63: =Be!I123 -> 0 | L63: =Be!A117 -> 0
B64: =Be!A124 -> 0 | C64: =Be!B124 -> 0 | D64: =Be!C124 -> 0 | E64: =Be!D124 -> 0 | F64: =Be!E124 -> 0 | G64: =Be!F124 -> 0 | H64: =Be!G124 -> 0 | I64: =Be!H124 -> 0 | J64: =Be!I124 -> 0 | L64: =Be!A117 -> 0
B65: =Be!A129 -> 0 | C65: =Be!B129 -> 0 | D65: =Be!C129 -> 0 | E65: =Be!D129 -> 0 | F65: =Be!E129 -> 0 | G65: =Be!F129 -> 0 | H65: =Be!G129 -> 0 | I65: =Be!H129 -> 0 | J65: =Be!I129 -> 0 | L65: =Be!A127 -> 0
B66: =Be!A130 -> 0 | C66: =Be!B130 -> 0 | D66: =Be!C130 -> 0 | E66: =Be!D130 -> 0 | F66: =Be!E130 -> 0 | G66: =Be!F130 -> 0 | H66: =Be!G130 -> 0 | I66: =Be!H130 -> 0 | J66: =Be!I130 -> 0 | L66: =Be!A127 -> 0
B67: =Be!A131 -> 0 | C67: =Be!B131 -> 0 | D67: =Be!C131 -> 0 | E67: =Be!D131 -> 0 | F67: =Be!E131 -> 0 | G67: =Be!F131 -> 0 | H67: =Be!G131 -> 0 | I67: =Be!H131 -> 0 | J67: =Be!I131 -> 0 | L67: =Be!A127 -> 0
B68: =Be!A132 -> 0 | C68: =Be!B132 -> 0 | D68: =Be!C132 -> 0 | E68: =Be!D132 -> 0 | F68: =Be!E132 -> 0 | G68: =Be!F132 -> 0 | H68: =Be!G132 -> 0 | I68: =Be!H132 -> 0 | J68: =Be!I132 -> 0 | L68: =Be!A127 -> 0
B69: =Be!A133 -> 0 | C69: =Be!B133 -> 0 | D69: =Be!C133 -> 0 | E69: =Be!D133 -> 0 | F69: =Be!E133 -> 0 | G69: =Be!F133 -> 0 | H69: =Be!G133 -> 0 | I69: =Be!H133 -> 0 | J69: =Be!I133 -> 0 | L69: =Be!A127 -> 0
B70: =Be!A134 -> 0 | C70: =Be!B134 -> 0 | D70: =Be!C134 -> 0 | E70: =Be!D134 -> 0 | F70: =Be!E134 -> 0 | G70: =Be!F134 -> 0 | H70: =Be!G134 -> 0 | I70: =Be!H134 -> 0 | J70: =Be!I134 -> 0 | L70: =Be!A127 -> 0
B71: =Be!A139 -> 0 | C71: =Be!B139 -> 0 | D71: =Be!C139 -> 0 | E71: =Be!D139 -> 0 | F71: =Be!E139 -> 0 | G71: =Be!F139 -> 0 | H71: =Be!G139 -> 0 | I71: =Be!H139 -> 0 | J71: =Be!I139 -> 0 | L71: =Be!A137 -> 0
B72: =Be!A140 -> 0 | C72: =Be!B140 -> 0 | D72: =Be!C140 -> 0 | E72: =Be!D140 -> 0 | F72: =Be!E140 -> 0 | G72: =Be!F140 -> 0 | H72: =Be!G140 -> 0 | I72: =Be!H140 -> 0 | J72: =Be!I140 -> 0 | L72: =Be!A137 -> 0
B73: =Be!A141 -> 0 | C73: =Be!B141 -> 0 | D73: =Be!C141 -> 0 | E73: =Be!D141 -> 0 | F73: =Be!E141 -> 0 | G73: =Be!F141 -> 0 | H73: =Be!G141 -> 0 | I73: =Be!H141 -> 0 | J73: =Be!I141 -> 0 | L73: =Be!A137 -> 0
B74: =Be!A142 -> 0 | C74: =Be!B142 -> 0 | D74: =Be!C142 -> 0 | E74: =Be!D142 -> 0 | F74: =Be!E142 -> 0 | G74: =Be!F142 -> 0 | H74: =Be!G142 -> 0 | I74: =Be!H142 -> 0 | J74: =Be!I142 -> 0 | L74: =Be!A137 -> 0
B75: =Be!A143 -> 0 | C75: =Be!B143 -> 0 | D75: =Be!C143 -> 0 | E75: =Be!D143 -> 0 | F75: =Be!E143 -> 0 | G75: =Be!F143 -> 0 | H75: =Be!G143 -> 0 | I75: =Be!H143 -> 0 | J75: =Be!I143 -> 0 | L75: =Be!A137 -> 0
B76: =Be!A144 -> 0 | C76: =Be!B144 -> 0 | D76: =Be!C144 -> 0 | E76: =Be!D144 -> 0 | F76: =Be!E144 -> 0 | G76: =Be!F144 -> 0 | H76: =Be!G144 -> 0 | I76: =Be!H144 -> 0 | J76: =Be!I144 -> 0 | L76: =Be!A137 -> 0
B77: =Be!A149 -> 0 | C77: =Be!B149 -> 0 | D77: =Be!C149 -> 0 | E77: =Be!D149 -> 0 | F77: =Be!E149 -> 0 | G77: =Be!F149 -> 0 | H77: =Be!G149 -> 0 | I77: =Be!H149 -> 0 | J77: =Be!I149 -> 0 | L77: =Be!A147 -> 0
B78: =Be!A150 -> 0 | C78: =Be!B150 -> 0 | D78: =Be!C150 -> 0 | E78: =Be!D150 -> 0 | F78: =Be!E150 -> 0 | G78: =Be!F150 -> 0 | H78: =Be!G150 -> 0 | I78: =Be!H150 -> 0 | J78: =Be!I150 -> 0 | L78: =Be!A147 -> 0
B79: =Be!A151 -> 0 | C79: =Be!B151 -> 0 | D79: =Be!C151 -> 0 | E79: =Be!D151 -> 0 | F79: =Be!E151 -> 0 | G79: =Be!F151 -> 0 | H79: =Be!G151 -> 0 | I79: =Be!H151 -> 0 | J79: =Be!I151 -> 0 | L79: =Be!A147 -> 0
B80: =Be!A152 -> 0 | C80: =Be!B152 -> 0 | D80: =Be!C152 -> 0 | E80: =Be!D152 -> 0 | F80: =Be!E152 -> 0 | G80: =Be!F152 -> 0 | H80: =Be!G152 -> 0 | I80: =Be!H152 -> 0 | J80: =Be!I152 -> 0 | L80: =Be!A147 -> 0
B81: =Be!A153 -> 0 | C81: =Be!B153 -> 0 | D81: =Be!C153 -> 0 | E81: =Be!D153 -> 0 | F81: =Be!E153 -> 0 | G81: =Be!F153 -> 0 | H81: =Be!G153 -> 0 | I81: =Be!H153 -> 0 | J81: =Be!I153 -> 0 | L81: =Be!A147 -> 0
B82: =Be!A154 -> 0 | C82: =Be!B154 -> 0 | D82: =Be!C154 -> 0 | E82: =Be!D154 -> 0 | F82: =Be!E154 -> 0 | G82: =Be!F154 -> 0 | H82: =Be!G154 -> 0 | I82: =Be!H154 -> 0 | J82: =Be!I154 -> 0 | L82: =Be!A147 -> 0
B83: =Be!A159 -> 0 | C83: =Be!B159 -> 0 | D83: =Be!C159 -> 0 | E83: =Be!D159 -> 0 | F83: =Be!E159 -> 0 | G83: =Be!F159 -> 0 | H83: =Be!G159 -> 0 | I83: =Be!H159 -> 0 | J83: =Be!I159 -> 0 | L83: =Be!A157 -> 0
B84: =Be!A160 -> 0 | C84: =Be!B160 -> 0 | D84: =Be!C160 -> 0 | E84: =Be!D160 -> 0 | F84: =Be!E160 -> 0 | G84: =Be!F160 -> 0 | H84: =Be!G160 -> 0 | I84: =Be!H160 -> 0 | J84: =Be!I160 -> 0 | L84: =Be!A157 -> 0
B85: =Be!A161 -> 0 | C85: =Be!B161 -> 0 | D85: =Be!C161 -> 0 | E85: =Be!D161 -> 0 | F85: =Be!E161 -> 0 | G85: =Be!F161 -> 0 | H85: =Be!G161 -> 0 | I85: =Be!H161 -> 0 | J85: =Be!I161 -> 0 | L85: =Be!A157 -> 0
B86: =Be!A162 -> 0 | C86: =Be!B162 -> 0 | D86: =Be!C162 -> 0 | E86: =Be!D162 -> 0 | F86: =Be!E162 -> 0 | G86: =Be!F162 -> 0 | H86: =Be!G162 -> 0 | I86: =Be!H162 -> 0 | J86: =Be!I162 -> 0 | L86: =Be!A157 -> 0
B87: =Be!A163 -> 0 | C87: =Be!B163 -> 0 | D87: =Be!C163 -> 0 | E87: =Be!D163 -> 0 | F87: =Be!E163 -> 0 | G87: =Be!F163 -> 0 | H87: =Be!G163 -> 0 | I87: =Be!H163 -> 0 | J87: =Be!I163 -> 0 | L87: =Be!A157 -> 0
B88: =Be!A164 -> 0 | C88: =Be!B164 -> 0 | D88: =Be!C164 -> 0 | E88: =Be!D164 -> 0 | F88: =Be!E164 -> 0 | G88: =Be!F164 -> 0 | H88: =Be!G164 -> 0 | I88: =Be!H164 -> 0 | J88: =Be!I164 -> 0 | L88: =Be!A157 -> 0
B89: =Be!A169 -> 0 | C89: =Be!B169 -> 0 | D89: =Be!C169 -> 0 | E89: =Be!D169 -> 0 | F89: =Be!E169 -> 0 | G89: =Be!F169 -> 0 | H89: =Be!G169 -> 0 | I89: =Be!H169 -> 0 | J89: =Be!I169 -> 0 | L89: =Be!A167 -> 0
B90: =Be!A170 -> 0 | C90: =Be!B170 -> 0 | D90: =Be!C170 -> 0 | E90: =Be!D170 -> 0 | F90: =Be!E170 -> 0 | G90: =Be!F170 -> 0 | H90: =Be!G170 -> 0 | I90: =Be!H170 -> 0 | J90: =Be!I170 -> 0 | L90: =Be!A167 -> 0
B91: =Be!A171 -> 0 | C91: =Be!B171 -> 0 | D91: =Be!C171 -> 0 | E91: =Be!D171 -> 0 | F91: =Be!E171 -> 0 | G91: =Be!F171 -> 0 | H91: =Be!G171 -> 0 | I91: =Be!H171 -> 0 | J91: =Be!I171 -> 0 | L91: =Be!A167 -> 0
B92: =Be!A172 -> 0 | C92: =Be!B172 -> 0 | D92: =Be!C172 -> 0 | E92: =Be!D172 -> 0 | F92: =Be!E172 -> 0 | G92: =Be!F172 -> 0 | H92: =Be!G172 -> 0 | I92: =Be!H172 -> 0 | J92: =Be!I172 -> 0 | L92: =Be!A167 -> 0
B93: =Be!A173 -> 0 | C93: =Be!B173 -> 0 | D93: =Be!C173 -> 0 | E93: =Be!D173 -> 0 | F93: =Be!E173 -> 0 | G93: =Be!F173 -> 0 | H93: =Be!G173 -> 0 | I93: =Be!H173 -> 0 | J93: =Be!I173 -> 0 | L93: =Be!A167 -> 0
B94: =Be!A174 -> 0 | C94: =Be!B174 -> 0 | D94: =Be!C174 -> 0 | E94: =Be!D174 -> 0 | F94: =Be!E174 -> 0 | G94: =Be!F174 -> 0 | H94: =Be!G174 -> 0 | I94: =Be!H174 -> 0 | J94: =Be!I174 -> 0 | L94: =Be!A167 -> 0
B95: =Be!A179 -> 0 | C95: =Be!B179 -> 0 | D95: =Be!C179 -> 0 | E95: =Be!D179 -> 0 | F95: =Be!E179 -> 0 | G95: =Be!F179 -> 0 | H95: =Be!G179 -> 0 | I95: =Be!H179 -> 0 | J95: =Be!I179 -> 0 | L95: =Be!A177 -> 0
B96: =Be!A180 -> 0 | C96: =Be!B180 -> 0 | D96: =Be!C180 -> 0 | E96: =Be!D180 -> 0 | F96: =Be!E180 -> 0 | G96: =Be!F180 -> 0 | H96: =Be!G180 -> 0 | I96: =Be!H180 -> 0 | J96: =Be!I180 -> 0 | L96: =Be!A177 -> 0
B97: =Be!A181 -> 0 | C97: =Be!B181 -> 0 | D97: =Be!C181 -> 0 | E97: =Be!D181 -> 0 | F97: =Be!E181 -> 0 | G97: =Be!F181 -> 0 | H97: =Be!G181 -> 0 | I97: =Be!H181 -> 0 | J97: =Be!I181 -> 0 | L97: =Be!A177 -> 0
B98: =Be!A182 -> 0 | C98: =Be!B182 -> 0 | D98: =Be!C182 -> 0 | E98: =Be!D182 -> 0 | F98: =Be!E182 -> 0 | G98: =Be!F182 -> 0 | H98: =Be!G182 -> 0 | I98: =Be!H182 -> 0 | J98: =Be!I182 -> 0 | L98: =Be!A177 -> 0
B99: =Be!A183 -> 0 | C99: =Be!B183 -> 0 | D99: =Be!C183 -> 0 | E99: =Be!D183 -> 0 | F99: =Be!E183 -> 0 | G99: =Be!F183 -> 0 | H99: =Be!G183 -> 0 | I99: =Be!H183 -> 0 | J99: =Be!I183 -> 0 | L99: =Be!A177 -> 0
B100: =Be!A184 -> 0 | C100: =Be!B184 -> 0 | D100: =Be!C184 -> 0 | E100: =Be!D184 -> 0 | F100: =Be!E184 -> 0 | G100: =Be!F184 -> 0 | H100: =Be!G184 -> 0 | I100: =Be!H184 -> 0 | J100: =Be!I184 -> 0 | L100: =Be!A177 -> 0
B101: =Be!A189 -> 0 | C101: =Be!B189 -> 0 | D101: =Be!C189 -> 0 | E101: =Be!D189 -> 0 | F101: =Be!E189 -> 0 | G101: =Be!F189 -> 0 | H101: =Be!G189 -> 0 | I101: =Be!H189 -> 0 | J101: =Be!I189 -> 0 | L101: =Be!A187 -> 0
B102: =Be!A190 -> 0 | C102: =Be!B190 -> 0 | D102: =Be!C190 -> 0 | E102: =Be!D190 -> 0 | F102: =Be!E190 -> 0 | G102: =Be!F190 -> 0 | H102: =Be!G190 -> 0 | I102: =Be!H190 -> 0 | J102: =Be!I190 -> 0 | L102: =Be!A187 -> 0
B103: =Be!A191 -> 0 | C103: =Be!B191 -> 0 | D103: =Be!C191 -> 0 | E103: =Be!D191 -> 0 | F103: =Be!E191 -> 0 | G103: =Be!F191 -> 0 | H103: =Be!G191 -> 0 | I103: =Be!H191 -> 0 | J103: =Be!I191 -> 0 | L103: =Be!A187 -> 0
B104: =Be!A192 -> 0 | C104: =Be!B192 -> 0 | D104: =Be!C192 -> 0 | E104: =Be!D192 -> 0 | F104: =Be!E192 -> 0 | G104: =Be!F192 -> 0 | H104: =Be!G192 -> 0 | I104: =Be!H192 -> 0 | J104: =Be!I192 -> 0 | L104: =Be!A187 -> 0
B105: =Be!A193 -> 0 | C105: =Be!B193 -> 0 | D105: =Be!C193 -> 0 | E105: =Be!D193 -> 0 | F105: =Be!E193 -> 0 | G105: =Be!F193 -> 0 | H105: =Be!G193 -> 0 | I105: =Be!H193 -> 0 | J105: =Be!I193 -> 0 | L105: =Be!A187 -> 0
B106: =Be!A194 -> 0 | C106: =Be!B194 -> 0 | D106: =Be!C194 -> 0 | E106: =Be!D194 -> 0 | F106: =Be!E194 -> 0 | G106: =Be!F194 -> 0 | H106: =Be!G194 -> 0 | I106: =Be!H194 -> 0 | J106: =Be!I194 -> 0 | L106: =Be!A187 -> 0
B107: =Be!A199 -> 0 | C107: =Be!B199 -> 0 | D107: =Be!C199 -> 0 | E107: =Be!D199 -> 0 | F107: =Be!E199 -> 0 | G107: =Be!F199 -> 0 | H107: =Be!G199 -> 0 | I107: =Be!H199 -> 0 | J107: =Be!I199 -> 0 | L107: =Be!A197 -> 0
B108: =Be!A200 -> 0 | C108: =Be!B200 -> 0 | D108: =Be!C200 -> 0 | E108: =Be!D200 -> 0 | F108: =Be!E200 -> 0 | G108: =Be!F200 -> 0 | H108: =Be!G200 -> 0 | I108: =Be!H200 -> 0 | J108: =Be!I200 -> 0 | L108: =Be!A197 -> 0
B109: =Be!A201 -> 0 | C109: =Be!B201 -> 0 | D109: =Be!C201 -> 0 | E109: =Be!D201 -> 0 | F109: =Be!E201 -> 0 | G109: =Be!F201 -> 0 | H109: =Be!G201 -> 0 | I109: =Be!H201 -> 0 | J109: =Be!I201 -> 0 | L109: =Be!A197 -> 0
B110: =Be!A202 -> 0 | C110: =Be!B202 -> 0 | D110: =Be!C202 -> 0 | E110: =Be!D202 -> 0 | F110: =Be!E202 -> 0 | G110: =Be!F202 -> 0 | H110: =Be!G202 -> 0 | I110: =Be!H202 -> 0 | J110: =Be!I202 -> 0 | L110: =Be!A197 -> 0
B111: =Be!A203 -> 0 | C111: =Be!B203 -> 0 | D111: =Be!C203 -> 0 | E111: =Be!D203 -> 0 | F111: =Be!E203 -> 0 | G111: =Be!F203 -> 0 | H111: =Be!G203 -> 0 | I111: =Be!H203 -> 0 | J111: =Be!I203 -> 0 | L111: =Be!A197 -> 0
B112: =Be!A204 -> 0 | C112: =Be!B204 -> 0 | D112: =Be!C204 -> 0 | E112: =Be!D204 -> 0 | F112: =Be!E204 -> 0 | G112: =Be!F204 -> 0 | H112: =Be!G204 -> 0 | I112: =Be!H204 -> 0 | J112: =Be!I204 -> 0 | L112: =Be!A197 -> 0
B113: =Be!A209 -> 0 | C113: =Be!B209 -> 0 | D113: =Be!C209 -> 0 | E113: =Be!D209 -> 0 | F113: =Be!E209 -> 0 | G113: =Be!F209 -> 0 | H113: =Be!G209 -> 0 | I113: =Be!H209 -> 0 | J113: =Be!I209 -> 0 | L113: =Be!A207 -> 0
B114: =Be!A210 -> 0 | C114: =Be!B210 -> 0 | D114: =Be!C210 -> 0 | E114: =Be!D210 -> 0 | F114: =Be!E210 -> 0 | G114: =Be!F210 -> 0 | H114: =Be!G210 -> 0 | I114: =Be!H210 -> 0 | J114: =Be!I210 -> 0 | L114: =Be!A207 -> 0
B115: =Be!A211 -> 0 | C115: =Be!B211 -> 0 | D115: =Be!C211 -> 0 | E115: =Be!D211 -> 0 | F115: =Be!E211 -> 0 | G115: =Be!F211 -> 0 | H115: =Be!G211 -> 0 | I115: =Be!H211 -> 0 | J115: =Be!I211 -> 0 | L115: =Be!A207 -> 0
B116: =Be!A212 -> 0 | C116: =Be!B212 -> 0 | D116: =Be!C212 -> 0 | E116: =Be!D212 -> 0 | F116: =Be!E212 -> 0 | G116: =Be!F212 -> 0 | H116: =Be!G212 -> 0 | I116: =Be!H212 -> 0 | J116: =Be!I212 -> 0 | L116: =Be!A207 -> 0
B117: =Be!A213 -> 0 | C117: =Be!B213 -> 0 | D117: =Be!C213 -> 0 | E117: =Be!D213 -> 0 | F117: =Be!E213 -> 0 | G117: =Be!F213 -> 0 | H117: =Be!G213 -> 0 | I117: =Be!H213 -> 0 | J117: =Be!I213 -> 0 | L117: =Be!A207 -> 0
B118: =Be!A214 -> 0 | C118: =Be!B214 -> 0 | D118: =Be!C214 -> 0 | E118: =Be!D214 -> 0 | F118: =Be!E214 -> 0 | G118: =Be!F214 -> 0 | H118: =Be!G214 -> 0 | I118: =Be!H214 -> 0 | J118: =Be!I214 -> 0 | L118: =Be!A207 -> 0
B119: =Be!A219 -> 0 | C119: =Be!B219 -> 0 | D119: =Be!C219 -> 0 | E119: =Be!D219 -> 0 | F119: =Be!E219 -> 0 | G119: =Be!F219 -> 0 | H119: =Be!G219 -> 0 | I119: =Be!H219 -> 0 | J119: =Be!I219 -> 0 | L119: =Be!A217 -> 0
B120: =Be!A220 -> 0 | C120: =Be!B220 -> 0 | D120: =Be!C220 -> 0 | E120: =Be!D220 -> 0 | F120: =Be!E220 -> 0 | G120: =Be!F220 -> 0 | H120: =Be!G220 -> 0 | I120: =Be!H220 -> 0 | J120: =Be!I220 -> 0 | L120: =Be!A217 -> 0
B121: =Be!A221 -> 0 | C121: =Be!B221 -> 0 | D121: =Be!C221 -> 0 | E121: =Be!D221 -> 0 | F121: =Be!E221 -> 0 | G121: =Be!F221 -> 0 | H121: =Be!G221 -> 0 | I121: =Be!H221 -> 0 | J121: =Be!I221 -> 0 | L121: =Be!A217 -> 0
B122: =Be!A222 -> 0 | C122: =Be!B222 -> 0 | D122: =Be!C222 -> 0 | E122: =Be!D222 -> 0 | F122: =Be!E222 -> 0 | G122: =Be!F222 -> 0 | H122: =Be!G222 -> 0 | I122: =Be!H222 -> 0 | J122: =Be!I222 -> 0 | L122: =Be!A217 -> 0
B123: =Be!A223 -> 0 | C123: =Be!B223 -> 0 | D123: =Be!C223 -> 0 | E123: =Be!D223 -> 0 | F123: =Be!E223 -> 0 | G123: =Be!F223 -> 0 | H123: =Be!G223 -> 0 | I123: =Be!H223 -> 0 | J123: =Be!I223 -> 0 | L123: =Be!A217 -> 0
B124: =Be!A224 -> 0 | C124: =Be!B224 -> 0 | D124: =Be!C224 -> 0 | E124: =Be!D224 -> 0 | F124: =Be!E224 -> 0 | G124: =Be!F224 -> 0 | H124: =Be!G224 -> 0 | I124: =Be!H224 -> 0 | J124: =Be!I224 -> 0 | L124: =Be!A217 -> 0
B125: =Be!A229 -> 0 | C125: =Be!B229 -> 0 | D125: =Be!C229 -> 0 | E125: =Be!D229 -> 0 | F125: =Be!E229 -> 0 | G125: =Be!F229 -> 0 | H125: =Be!G229 -> 0 | I125: =Be!H229 -> 0 | J125: =Be!I229 -> 0 | L125: =Be!A227 -> 0
B126: =Be!A230 -> 0 | C126: =Be!B230 -> 0 | D126: =Be!C230 -> 0 | E126: =Be!D230 -> 0 | F126: =Be!E230 -> 0 | G126: =Be!F230 -> 0 | H126: =Be!G230 -> 0 | I126: =Be!H230 -> 0 | J126: =Be!I230 -> 0 | L126: =Be!A227 -> 0
B127: =Be!A231 -> 0 | C127: =Be!B231 -> 0 | D127: =Be!C231 -> 0 | E127: =Be!D231 -> 0 | F127: =Be!E231 -> 0 | G127: =Be!F231 -> 0 | H127: =Be!G231 -> 0 | I127: =Be!H231 -> 0 | J127: =Be!I231 -> 0 | L127: =Be!A227 -> 0
B128: =Be!A232 -> 0 | C128: =Be!B232 -> 0 | D128: =Be!C232 -> 0 | E128: =Be!D232 -> 0 | F128: =Be!E232 -> 0 | G128: =Be!F232 -> 0 | H128: =Be!G232 -> 0 | I128: =Be!H232 -> 0 | J128: =Be!I232 -> 0 | L128: =Be!A227 -> 0
B129: =Be!A233 -> 0 | C129: =Be!B233 -> 0 | D129: =Be!C233 -> 0 | E129: =Be!D233 -> 0 | F129: =Be!E233 -> 0 | G129: =Be!F233 -> 0 | H129: =Be!G233 -> 0 | I129: =Be!H233 -> 0 | J129: =Be!I233 -> 0 | L129: =Be!A227 -> 0
B130: =Be!A234 -> 0 | C130: =Be!B234 -> 0 | D130: =Be!C234 -> 0 | E130: =Be!D234 -> 0 | F130: =Be!E234 -> 0 | G130: =Be!F234 -> 0 | H130: =Be!G234 -> 0 | I130: =Be!H234 -> 0 | J130: =Be!I234 -> 0 | L130: =Be!A227 -> 0
B131: =Be!A239 -> 0 | C131: =Be!B239 -> 0 | D131: =Be!C239 -> 0 | E131: =Be!D239 -> 0 | F131: =Be!E239 -> 0 | G131: =Be!F239 -> 0 | H131: =Be!G239 -> 0 | I131: =Be!H239 -> 0 | J131: =Be!I239 -> 0 | L131: =Be!A237 -> 0
B132: =Be!A240 -> 0 | C132: =Be!B240 -> 0 | D132: =Be!C240 -> 0 | E132: =Be!D240 -> 0 | F132: =Be!E240 -> 0 | G132: =Be!F240 -> 0 | H132: =Be!G240 -> 0 | I132: =Be!H240 -> 0 | J132: =Be!I240 -> 0 | L132: =Be!A237 -> 0
B133: =Be!A241 -> 0 | C133: =Be!B241 -> 0 | D133: =Be!C241 -> 0 | E133: =Be!D241 -> 0 | F133: =Be!E241 -> 0 | G133: =Be!F241 -> 0 | H133: =Be!G241 -> 0 | I133: =Be!H241 -> 0 | J133: =Be!I241 -> 0 | L133: =Be!A237 -> 0
B134: =Be!A242 -> 0 | C134: =Be!B242 -> 0 | D134: =Be!C242 -> 0 | E134: =Be!D242 -> 0 | F134: =Be!E242 -> 0 | G134: =Be!F242 -> 0 | H134: =Be!G242 -> 0 | I134: =Be!H242 -> 0 | J134: =Be!I242 -> 0 | L134: =Be!A237 -> 0
B135: =Be!A243 -> 0 | C135: =Be!B243 -> 0 | D135: =Be!C243 -> 0 | E135: =Be!D243 -> 0 | F135: =Be!E243 -> 0 | G135: =Be!F243 -> 0 | H135: =Be!G243 -> 0 | I135: =Be!H243 -> 0 | J135: =Be!I243 -> 0 | L135: =Be!A237 -> 0
B136: =Be!A244 -> 0 | C136: =Be!B244 -> 0 | D136: =Be!C244 -> 0 | E136: =Be!D244 -> 0 | F136: =Be!E244 -> 0 | G136: =Be!F244 -> 0 | H136: =Be!G244 -> 0 | I136: =Be!H244 -> 0 | J136: =Be!I244 -> 0 | L136: =Be!A237 -> 0

Sheet Csapat
A1: II. korcsoport FIÚ CSAPAT verseny (Rendezés Ctrl + s )
B2: Iskola | C2: Pont
A3: 1. | B3: =Be!$A$67&CHAR(10)&Be!$A$69&" "&Be!$I$69&" "&Be!$A$70&" "&Be!$I$70&CHAR(10)&Be!$A$71&" "&Be!$I$71&" "&Be!$A$72&" "&Be!$I$72&CHAR(10)&Be!$A$73&" "&Be!$I$73&" "&Be!$A$74&" "&Be!$I$74&CHAR(10)&" "&Be!$K$73&" "&Be!$K$74 -> Tóvárosi Általános Iskola Székesfehérvár Drexler Lóránt József 347 Grósz Gergő 366 Kerék Patrik 329 Varga Tamás 263 Mohai Bálint 307 Németh Péter 261 4×100 195 | C3: =Be!$K$69 -> 1807
A4: 2. | B4: =Be!$A$57&CHAR(10)&Be!$A$59&" "&Be!$I$59&" "&Be!$A$60&" "&Be!$I$60&CHAR(10)&Be!$A$61&" "&Be!$I$61&" "&Be!$A$62&" "&Be!$I$62&CHAR(10)&Be!$A$63&" "&Be!$I$63&" "&Be!$A$64&" "&Be!$I$64&CHAR(10)&" "&Be!$K$63&" "&Be!$K$64 -> Hétvezér Általános Iskola Székesfehérvár Keserü Balázs 284 Kovács Kristóf 282 Kovács Zsombor 282 Králik András 330 Sógorka Dávid 323 Zákány Zénó 322 4×100 156 | C4: =Be!$K$59 -> 1697
A5: 3. | B5: =Be!$A$47&CHAR(10)&Be!$A$49&" "&Be!$I$49&" "&Be!$A$50&" "&Be!$I$50&CHAR(10)&Be!$A$51&" "&Be!$I$51&" "&Be!$A$52&" "&Be!$I$52&CHAR(10)&Be!$A$53&" "&Be!$I$53&" "&Be!$A$54&" "&Be!$I$54&CHAR(10)&" "&Be!$K$53&" "&Be!$K$54 -> Kossuth Lajos Általános Iskola Nagyvenyim Balogh Mátyás 211 Hekele Dániel 358 Kolompár Lajos 313 Kolompár Milán Rómeó 297 Mess Ferenc Gergő 263 Wéber Róbert 316 4×100 133 | C5: =Be!$K$49 -> 1680
A6: 4. | B6: =Be!$A$87&CHAR(10)&Be!$A$89&" "&Be!$I$89&" "&Be!$A$90&" "&Be!$I$90&CHAR(10)&Be!$A$91&" "&Be!$I$91&" "&Be!$A$92&" "&Be!$I$92&CHAR(10)&Be!$A$93&" "&Be!$I$93&" "&Be!$A$94&" "&Be!$I$94&CHAR(10)&" "&Be!$K$93&" "&Be!$K$94 -> Gorsium Általános Iskola és Csősz Általános Iskola Tagintézmény Tác Csehák Botond 294 Dallos Mirkó Benedek 251 Gellén Zsolt Patrik 284 Szauter Bercel 229 Szimander Gergő 179 Trenka Ádám 329 4×100 149 | C6: =Be!$K$89 -> 1536
A7: 5. | B7: =Be!$A$37&CHAR(10)&Be!$A$39&" "&Be!$I$39&" "&Be!$A$40&" "&Be!$I$40&CHAR(10)&Be!$A$41&" "&Be!$I$41&" "&Be!$A$42&" "&Be!$I$42&CHAR(10)&Be!$A$43&" "&Be!$I$43&" "&Be!$A$44&" "&Be!$I$44&CHAR(10)&" "&Be!$K$43&" "&Be!$K$44 -> Szent Erzsébet Római Katolikus Általános Iskola Mór Gellért Zsombor 247 Jánni Ákos 300 Lenchés Tamás 272 Szemeti Márton 267 Zsédely Levente 303 Krausz Dávid 211 4×100 128 | C7: =Be!$K$39 -> 1517
A8: 6. | B8: =Be!$A$77&CHAR(10)&Be!$A$79&" "&Be!$I$79&" "&Be!$A$80&" "&Be!$I$80&CHAR(10)&Be!$A$81&" "&Be!$I$81&" "&Be!$A$82&" "&Be!$I$82&CHAR(10)&Be!$A$83&" "&Be!$I$83&" "&Be!$A$84&" "&Be!$I$84&CHAR(10)&" "&Be!$K$83&" "&Be!$K$84 -> Vörösmarty Mihály Általános Iskola Székesfehérvár Dávid Ármin 315 Fábián Barnabás 228 Szalay Levente 258 Mészáros Noel 246 Sági Bálint 222 0 4×100 146 | C8: =Be!$K$79 -> 1415
A9: 7. | B9: =Be!$A$27&CHAR(10)&Be!$A$29&" "&Be!$I$29&" "&Be!$A$30&" "&Be!$I$30&CHAR(10)&Be!$A$31&" "&Be!$I$31&" "&Be!$A$32&" "&Be!$I$32&CHAR(10)&Be!$A$33&" "&Be!$I$33&" "&Be!$A$34&" "&Be!$I$34&CHAR(10)&" "&Be!$K$33&" "&Be!$K$34 -> Alcsútdobozi József Nádor Általános Iskola Alcsútdoboz Ángyás Ferenc János 239 Antal Márton 291 Bíró Ádám Levente 219 Budai Kristóf Tamás 259 Keindl Gergő 208 Marton István 223 4×100 115 | C9: =Be!$K$29 -> 1346
A10: 8. | B10: =Be!$A$97&CHAR(10)&Be!$A$99&" "&Be!$I$99&" "&Be!$A$100&" "&Be!$I$100&CHAR(10)&Be!$A$101&" "&Be!$I$101&" "&Be!$A$102&" "&Be!$I$102&CHAR(10)&Be!$A$103&" "&Be!$I$103&" "&Be!$A$104&" "&Be!$I$104&CHAR(10)&" "&Be!$K$103&" "&Be!$K$104 -> 0 0 0 0 0 0 4×100 0 | C10: =Be!$K$99 -> 0
A11: 9. | B11: =Be!$A$107&CHAR(10)&Be!$A$109&" "&Be!$I$109&" "&Be!$A$110&" "&Be!$I$110&CHAR(10)&Be!$A$111&" "&Be!$I$111&" "&Be!$A$112&" "&Be!$I$112&CHAR(10)&Be!$A$113&" "&Be!$I$113&" "&Be!$A$114&" "&Be!$I$114&CHAR(10)&" "&Be!$K$113&" "&Be!$K$114 -> 0 0 0 0 0 0 4×100 0 | C11: =Be!$K$109 -> 0
A12: 10. | B12: =Be!$A$117&CHAR(10)&Be!$A$119&" "&Be!$I$119&" "&Be!$A$120&" "&Be!$I$120&CHAR(10)&Be!$A$121&" "&Be!$I$121&" "&Be!$A$122&" "&Be!$I$122&CHAR(10)&Be!$A$123&" "&Be!$I$123&" "&Be!$A$124&" "&Be!$I$124&CHAR(10)&" "&Be!$K$123&" "&Be!$K$124 -> 0 0 0 0 0 0 4×100 0 | C12: =Be!$K$119 -> 0
A13: 11. | B13: =Be!$A$127&CHAR(10)&Be!$A$129&" "&Be!$I$129&" "&Be!$A$130&" "&Be!$I$130&CHAR(10)&Be!$A$131&" "&Be!$I$131&" "&Be!$A$132&" "&Be!$I$132&CHAR(10)&Be!$A$133&" "&Be!$I$133&" "&Be!$A$134&" "&Be!$I$134&CHAR(10)&" "&Be!$K$133&" "&Be!$K$134 -> 0 0 0 0 0 0 4×100 0 | C13: =Be!$K$129 -> 0
A14: 12. | B14: =Be!$A$137&CHAR(10)&Be!$A$139&" "&Be!$I$139&" "&Be!$A$140&" "&Be!$I$140&CHAR(10)&Be!$A$141&" "&Be!$I$141&" "&Be!$A$142&" "&Be!$I$142&CHAR(10)&Be!$A$143&" "&Be!$I$143&" "&Be!$A$144&" "&Be!$I$144&CHAR(10)&" "&Be!$K$143&" "&Be!$K$144 -> 0 0 0 0 0 0 4×100 0 | C14: =Be!$K$139 -> 0
A15: 13. | B15: =Be!$A$147&CHAR(10)&Be!$A$149&" "&Be!$I$149&" "&Be!$A$150&" "&Be!$I$150&CHAR(10)&Be!$A$151&" "&Be!$I$151&" "&Be!$A$152&" "&Be!$I$152&CHAR(10)&Be!$A$153&" "&Be!$I$153&" "&Be!$A$154&" "&Be!$I$154&CHAR(10)&" "&Be!$K$153&" "&Be!$K$154 -> 0 0 0 0 0 0 4×100 0 | C15: =Be!$K$149 -> 0
A16: 14. | B16: =Be!$A$157&CHAR(10)&Be!$A$159&" "&Be!$I$159&" "&Be!$A$160&" "&Be!$I$160&CHAR(10)&Be!$A$161&" "&Be!$I$161&" "&Be!$A$162&" "&Be!$I$162&CHAR(10)&Be!$A$163&" "&Be!$I$163&" "&Be!$A$164&" "&Be!$I$164&CHAR(10)&" "&Be!$K$163&" "&Be!$K$164 -> 0 0 0 0 0 0 4×100 0 | C16: =Be!$K$159 -> 0
A17: 15. | B17: =Be!$A$167&CHAR(10)&Be!$A$169&" "&Be!$I$169&" "&Be!$A$170&" "&Be!$I$170&CHAR(10)&Be!$A$171&" "&Be!$I$171&" "&Be!$A$172&" "&Be!$I$172&CHAR(10)&Be!$A$173&" "&Be!$I$173&" "&Be!$A$174&" "&Be!$I$174&CHAR(10)&" "&Be!$K$173&" "&Be!$K$174 -> 0 0 0 0 0 0 4×100 0 | C17: =Be!$K$169 -> 0
A18: 16. | B18: =Be!$A$177&CHAR(10)&Be!$A$179&" "&Be!$I$179&" "&Be!$A$180&" "&Be!$I$180&CHAR(10)&Be!$A$181&" "&Be!$I$181&" "&Be!$A$182&" "&Be!$I$182&CHAR(10)&Be!$A$183&" "&Be!$I$183&" "&Be!$A$184&" "&Be!$I$184&CHAR(10)&" "&Be!$K$183&" "&Be!$K$184 -> 0 0 0 0 0 0 4×100 0 | C18: =Be!$K$179 -> 0
A19: 17. | B19: =Be!$A$187&CHAR(10)&Be!$A$189&" "&Be!$I$189&" "&Be!$A$190&" "&Be!$I$190&CHAR(10)&Be!$A$191&" "&Be!$I$191&" "&Be!$A$192&" "&Be!$I$192&CHAR(10)&Be!$A$193&" "&Be!$I$193&" "&Be!$A$194&" "&Be!$I$194&CHAR(10)&" "&Be!$K$193&" "&Be!$K$194 -> 0 0 0 0 0 0 4×100 0 | C19: =Be!$K$189 -> 0
A20: 18. | B20: =Be!$A$197&CHAR(10)&Be!$A$199&" "&Be!$I$199&" "&Be!$A$200&" "&Be!$I$200&CHAR(10)&Be!$A$201&" "&Be!$I$201&" "&Be!$A$202&" "&Be!$I$202&CHAR(10)&Be!$A$203&" "&Be!$I$203&" "&Be!$A$204&" "&Be!$I$204&CHAR(10)&" "&Be!$K$203&" "&Be!$K$204 -> 0 0 0 0 0 0 4×100 0 | C20: =Be!$K$199 -> 0
A21: 19. | B21: =Be!$A$207&CHAR(10)&Be!$A$209&" "&Be!$I$209&" "&Be!$A$210&" "&Be!$I$210&CHAR(10)&Be!$A$211&" "&Be!$I$211&" "&Be!$A$212&" "&Be!$I$212&CHAR(10)&Be!$A$213&" "&Be!$I$213&" "&Be!$A$214&" "&Be!$I$214&CHAR(10)&" "&Be!$K$213&" "&Be!$K$214 -> 0 0 0 0 0 0 4×100 0 | C21: =Be!$K$209 -> 0
A22: 20. | B22: =Be!$A$217&CHAR(10)&Be!$A$219&" "&Be!$I$219&" "&Be!$A$220&" "&Be!$I$220&CHAR(10)&Be!$A$221&" "&Be!$I$221&" "&Be!$A$222&" "&Be!$I$222&CHAR(10)&Be!$A$223&" "&Be!$I$223&" "&Be!$A$224&" "&Be!$I$224&CHAR(10)&" "&Be!$K$223&" "&Be!$K$224 -> 0 0 0 0 0 0 4×100 0 | C22: =Be!$K$219 -> 0
A23: 21. | B23: =Be!$A$227&CHAR(10)&Be!$A$229&" "&Be!$I$229&" "&Be!$A$230&" "&Be!$I$230&CHAR(10)&Be!$A$231&" "&Be!$I$231&" "&Be!$A$232&" "&Be!$I$232&CHAR(10)&Be!$A$233&" "&Be!$I$233&" "&Be!$A$234&" "&Be!$I$234&CHAR(10)&" "&Be!$K$233&" "&Be!$K$234 -> 0 0 0 0 0 0 4×100 0 | C23: =Be!$K$229 -> 0
A24: 22. | B24: =Be!$A$237&CHAR(10)&Be!$A$239&" "&Be!$I$239&" "&Be!$A$240&" "&Be!$I$240&CHAR(10)&Be!$A$241&" "&Be!$I$241&" "&Be!$A$242&" "&Be!$I$242&CHAR(10)&Be!$A$243&" "&Be!$I$243&" "&Be!$A$244&" "&Be!$I$244&CHAR(10)&" "&Be!$K$243&" "&Be!$K$244 -> 0 0 0 0 0 0 4×100 0 | C24: =Be!$K$239 -> 0
